Workbook

Sheet Cover & Instructions
A1: Welcome to the Ironmaking Cost and GHG Estimator Tool. Read everything here first!!!
A2: Disclaimer
A3: This spreadsheet tool is not designed to model every possible iron or steelmaking technology.
A4: This tool is meant for non-LCA experts to use! As long as you can estimate the material and energy inputs of your technology, this tool will do much of the background LCA work for you.
A5: The goal of this tool is to enable fair comparison of technologies using input data from a common, standard input library.
A6: Use this tool to quantify all your technology's material and energy inputs to your proposed iron/steelmaking technology. You can choose type of energy input (e.g. natural gas, electricity, hydrogen) and quality of ore (e.g. imported or US taconite).
A7: It should be possible to model your proposed technology using the data provided. If there are significant barriers to modeling your technology with the tool, do the best you can and discuss any limitations in your application.
A8: The embodied emissions for steel scrap include collection, transportation, sorting, etc.
A9: This tool only tracks GHG emissions. Refer back to the FOA and address any other environmental concerns explicitly noted.
A10: This tool does not directly break emissions into Scopes as defined by the WRI GHG Protocol. However, on the Comparison sheet, results are broken out into life cycle stages. These results will be used in concert with your application to gauge the GHG reduction potential of your proposed technology.
A23: The above steps are all covered automatically in this tool. Regardless of if you are applying to Track 1 or Track 2, fill out all of the green-shaded cells in on the "Your Tech - Today's Grid" sheet.
A25: Sheet Overviews/Instructions
A26: There are 6 sheets after this cover page in the document. You may only edit three of them. You must update the data in "Your Tech - Today's Grid" case, and you may update the "Assumptions - Low-C Elec" and "Your Tech - Low-C Elec" sheets if and only if the provided model does not capture specific material and energy inputs to your technology.
A27: Assumptions - Today's Grid: Background data (GHG emissions, energy consumption) and cost for energy and material inputs to iron and steel-making technologies using today's grid, energy costs, etc. Do not edit this sheet!
A28: Assumptions - Low-C Elec: Background data (GHG emissions, energy consumption) and cost for energy and material inputs to iron and steel-making technologies using a future low-carbon grid, energy cost estimates, etc. If there are specific energy or material feedstocks not captured in this tool, you may add them here with references for all data entered. If you add them, you will need to write manual formulas on the "Your Tech - Today's Grid," "Your Tech - Low-C Elec," and the "Comparison" sheets to use this new data.
A29: BF-BOF - Today's Grid: Process data for BF-BOF using today's grid scenario assumptions. Do not edit this sheet!
A30: BF-BOF - Low-C Elec: Process data for BF-BOF using low-carbon grid scenario assumptions. Do not edit this sheet!
A31: Your Tech - Today's Grid: For all green shaded cells, either leave a zero or add the correct number estimating how much material/energy flow your technology requires at each step of the iron/steelmaking process. For each number entered, provide jusfitifacion in the Justification column. Note all auxiliary processes are also modeled like feedstock production, sintering, skin mill, EAF, etc. You may edit energy and material inputs to these processes as well.
A32: Your Tech - Low-C Elec: Process data fed from the "Your Tech - Today's Grid" sheet. If there are technical reasons to believe that the material/energy inputs will change based solely on the carbon intensity of electricity in your process, you may make changes with ample justification. Otherwise, do note edit this sheet!
A33: Comparison: Auto-populated charts and tables fed from inputs on the other sheets of this workbook. Do not edit this sheet!
A35: How to use
A36: Note units on all cells!
A37: Any green shaded cell is editable.
A38: Please update any inputs in green that are applicable to your technology. If you do this, you MUST also fill out the "Justification for Changes" column in that row.
A39: Cradle-to-gate biogenic carbon uptake and emissions should not be tracked UNLESS biogenic CH4 is directly emitted during the process OR biogenic C is permanently stored in the iron/steel product. Note in your application how much biogenic C (t C/t product) is permanently sequestered in the final iron/steel product (if any).
A40: Sources for input data/assumptions are provided to help you as you document justifications for any changes you make to green shaded cells.
A41: If your technology combines process steps, choose one of them represented in this model to apply your input material and energy consumption data, zero out the other(s), and provide ample justification.
A43: Abbreviations, definitions
A44: All greenhouse gas (GHG) emissions factors are cradle-to-gate (non-biogenic embodied columns) and gate-to-gate (non-biogenic chemical/combustion columns) in terms of CO2-equivalents and utilize 100-year GWP values. If your process directly (i.e. from process chemistry, not from upstream energy production or use) emits CH4, N2O, SF6, or other greenhouse gases to the atmosphere, please note this in your application.
A45: "t" always means metric tonne
A47: Request for comments, suggestions, additions
A48: Please send any questions or comments to daniel.garcia@hq.doe.gov cc-ing jenifer.shafer@hq.doe.gov

Sheet BF-BOF - Low-C Elec
A1: Notional BF-BOF Technology
A2: Input Variable | D2: Value | E2: Cost Units | F2: Value | G2: Amount/t crude steel | H2: Value | I2: Embedded emissions | K2: Value | L2: Process emissions | M2: Justification for Changes | N2: Source
A4: Capital Equipment
A5: BF + BOF (total upfront cost) | D5: ='Assumptions - Low-C Elec'!C43 -> 600 | E5: $/t HRC
A6: BF + BOF Annualized | D6: ='Assumptions - Low-C Elec'!C44 -> 59.16554466 | E6: $/t HRC
A8: On-Site Operations
A9: BF + BOF | D9: =D5*0.085 -> 51 | E9: $/t HRC
A10: Sintering | D10: =D68+SUM(E69:E75) -> 7.92010026 | E10: $/t HRC | K10: =SUM(H69:H75) -> 0.1381310774 | L10: t CO2e/t HRC steel
A11: Hot Rolling | D11: =D60+SUM(E61:E66) -> 21.16408853 | E11: $/t HRC | K11: =SUM(H61:H66) -> 0.06628798694 | L11: t CO2e/t HRC steel
A12: Stamping | D12: =D77+SUM(E78:E83) -> 19.64289254 | E12: $/t HRC | K12: =SUM(H78:H83) -> 0.01764287842 | L12: t CO2e/t HRC steel
A13: Skin Mill | D13: =D85+SUM(E86:E91) -> 1.861629636 | E13: $/t HRC | K13: =SUM(H86:H91) -> 0.0008616289463 | L13: t CO2e/t HRC steel
A16: Transportation | C16: Distance (mi)
A17: Water | C17: 0 | D17: =C17*'Assumptions - Low-C Elec'!$C$36*F17 -> 0 | E17: $/t HRC steel | F17: 0 | G17: t ore/t HRC steel | H17: 0 | I17: t CO2e/t HRC steel | K17: =F17*'Assumptions - Low-C Elec'!$I$36*C17 -> 0 | L17: t CO2e/t HRC steel | N17: GREET1 2022. Fuel Embedded emissions are wrapped into the "process emissions" column as well as combustion.
A18: Rail | C18: 800 | D18: =C18*'Assumptions - Low-C Elec'!$C$37*F18 -> 96 | E18: $/t HRC steel | F18: 4 | G18: t ore/t HRC steel | H18: 0 | I18: t CO2e/t HRC steel | K18: =F18*'Assumptions - Low-C Elec'!$I$37*C18 -> 0.13216 | L18: t CO2e/t HRC steel | N18: GREET1 2022. Fuel Embedded emissions are wrapped into the "process emissions" column as well as combustion.
A19: Truck | C19: 0 | D19: =C19*'Assumptions - Low-C Elec'!$C$38*F19 -> 0 | E19: $/t HRC steel | F19: 0 | G19: t ore/t HRC steel | H19: 0 | I19: t CO2e/t HRC steel | K19: =F19*'Assumptions - Low-C Elec'!$I$38*C19 -> 0 | L19: t CO2e/t HRC steel | N19: GREET1 2022. Fuel Embedded emissions are wrapped into the "process emissions" column as well as combustion.
A21: Energy Inputs to Ironmaking Step ONLY (Blast Furnace)
A22: Natural gas | D22: =F22*'Assumptions - Low-C Elec'!C24 -> 3.99505339 | E22: $/t HRC steel | F22: =CONVERT(1.462*1000000,"BTU","GJ") -> 1.542491657 | G22: GJ/t HRC steel | H22: =F22*'Assumptions - Low-C Elec'!F24 -> 0.01696740822 | I22: t CO2e/t HRC steel | K22: =F22*'Assumptions - Low-C Elec'!I24 -> 0.103346941 | L22: t CO2e/t HRC steel
A23: Coke | D23: =F23*'Assumptions - Low-C Elec'!C25 -> 25.04688878 | E23: $/t HRC steel | F23: =CONVERT(9.933*1000000,"BTU","GJ") -> 10.47986978 | G23: GJ/t HRC steel | H23: =F23*'Assumptions - Low-C Elec'!F25 -> 0.0628792187 | I23: t CO2e/t HRC steel | K23: =F23*'Assumptions - Low-C Elec'!I25 -> 1.152785676 | L23: t CO2e/t HRC steel
A24: Electricity (2050 grid) | D24: =F24*'Assumptions - Low-C Elec'!C27 -> 2.022192002 | E24: $/t HRC steel | F24: =CONVERT(0.23*1000000,"BTU","GJ") -> 0.2426628461 | G24: GJ/t HRC steel | H24: =F24*'Assumptions - Low-C Elec'!F27 -> 0.00471844423 | I24: t CO2e/t HRC steel | K24: =F24*'Assumptions - Low-C Elec'!I26 -> 0 | L24: t CO2e/t HRC steel
A25: Fossil SMR Hydrogen (US) | D25: =F25*'Assumptions - Low-C Elec'!C28 -> 0 | E25: $/t HRC steel | F25: 0 | G25: GJ/t HRC steel | H25: =F25*'Assumptions - Low-C Elec'!F28 -> 0 | I25: t CO2e/t HRC steel | K25: =F25*'Assumptions - Low-C Elec'!I28 -> 0 | L25: t CO2e/t HRC steel
A26: Fossil SMR+CCS Hydrogen (US) | D26: =F26*'Assumptions - Low-C Elec'!C29 -> 0 | E26: $/t HRC steel | F26: 0 | G26: GJ/t HRC steel | H26: =F26*'Assumptions - Low-C Elec'!F29 -> 0 | I26: t CO2e/t HRC steel | K26: =F26*'Assumptions - Low-C Elec'!I29 -> 0 | L26: t CO2e/t HRC steel
A27: Electrolysis Hydrogen (US) | D27: =F27*'Assumptions - Low-C Elec'!C30 -> 0 | E27: $/t HRC steel | F27: 0 | G27: GJ/t HRC steel | H27: =F27*'Assumptions - Low-C Elec'!F30 -> 0 | I27: t CO2e/t HRC steel | K27: =F27*'Assumptions - Low-C Elec'!I30 -> 0 | L27: t CO2e/t HRC steel
A28: Fossil Diesel | D28: =F28*'Assumptions - Low-C Elec'!C31 -> 0 | E28: $/t HRC steel | F28: 0 | G28: GJ/t HRC steel | H28: =F28*'Assumptions - Low-C Elec'!F31 -> 0 | I28: t CO2e/t HRC steel | K28: =F28*'Assumptions - Low-C Elec'!I31 -> 0 | L28: t CO2e/t HRC steel
A29: Fossil Gasoline | D29: =F29*'Assumptions - Low-C Elec'!C32 -> 0 | E29: $/t HRC steel | F29: 0 | G29: GJ/t HRC steel | H29: =F29*'Assumptions - Low-C Elec'!F32 -> 0 | I29: t CO2e/t HRC steel | K29: =F29*'Assumptions - Low-C Elec'!I32 -> 0 | L29: t CO2e/t HRC steel
A31: Energy Inputs to Steelmaking Step ONLY (Basic Oxygen Furnace)
A32: Natural gas | D32: =F32*'Assumptions - Low-C Elec'!C24 -> 0.9126866159 | E32: $/t HRC steel | F32: =CONVERT(0.334*1000000,"BTU","GJ") -> 0.3523886548 | G32: GJ/t HRC steel | H32: =F32*'Assumptions - Low-C Elec'!F24 -> 0.003876275203 | I32: t CO2e/t HRC steel | K32: =F32*'Assumptions - Low-C Elec'!I24 -> 0.02361003987 | L32: t CO2e/t HRC steel
A33: Coke | D33: =F33*'Assumptions - Low-C Elec'!C25 -> 0 | E33: $/t HRC steel | F33: 0 | G33: GJ/t HRC steel | H33: =F33*'Assumptions - Low-C Elec'!F25 -> 0 | I33: t CO2e/t HRC steel | K33: =F33*'Assumptions - Low-C Elec'!I25 -> 0 | L33: t CO2e/t HRC steel
A34: Electricity (2050 grid) | D34: =F34*'Assumptions - Low-C Elec'!C27 -> 0.9671353053 | E34: $/t HRC steel | F34: =CONVERT(0.11*1000000,"BTU","GJ") -> 0.1160561438 | G34: GJ/t HRC steel | H34: =F34*'Assumptions - Low-C Elec'!F27 -> 0.00225664724 | I34: t CO2e/t HRC steel | K34: =F34*'Assumptions - Low-C Elec'!I27 -> 0 | L34: t CO2e/t HRC steel
A35: Fossil SMR Hydrogen (US) | D35: =F35*'Assumptions - Low-C Elec'!C28 -> 0 | E35: $/t HRC steel | F35: 0 | G35: GJ/t HRC steel | H35: =F35*'Assumptions - Low-C Elec'!F28 -> 0 | I35: t CO2e/t HRC steel | K35: =F35*'Assumptions - Low-C Elec'!I28 -> 0 | L35: t CO2e/t HRC steel
A36: Fossil SMR+CCS Hydrogen (US) | D36: =F36*'Assumptions - Low-C Elec'!C29 -> 0 | E36: $/t HRC steel | F36: 0 | G36: GJ/t HRC steel | H36: =F36*'Assumptions - Low-C Elec'!F29 -> 0 | I36: t CO2e/t HRC steel | K36: =F36*'Assumptions - Low-C Elec'!I29 -> 0 | L36: t CO2e/t HRC steel
A37: Electrolysis Hydrogen (US) | D37: =F37*'Assumptions - Low-C Elec'!C30 -> 0 | E37: $/t HRC steel | F37: 0 | G37: GJ/t HRC steel | H37: =F37*'Assumptions - Low-C Elec'!F30 -> 0 | I37: t CO2e/t HRC steel | K37: =F37*'Assumptions - Low-C Elec'!I30 -> 0 | L37: t CO2e/t HRC steel
A38: Fossil Diesel | D38: =F38*'Assumptions - Low-C Elec'!C31 -> 0 | E38: $/t HRC steel | F38: 0 | G38: GJ/t HRC steel | H38: =F38*'Assumptions - Low-C Elec'!F31 -> 0 | I38: t CO2e/t HRC steel | K38: =F38*'Assumptions - Low-C Elec'!I31 -> 0 | L38: t CO2e/t HRC steel
A39: Fossil Gasoline | D39: =F39*'Assumptions - Low-C Elec'!C32 -> 0 | E39: $/t HRC steel | F39: 0 | G39: GJ/t HRC steel | H39: =F39*'Assumptions - Low-C Elec'!F32 -> 0 | I39: t CO2e/t HRC steel | K39: =F39*'Assumptions - Low-C Elec'!I32 -> 0 | L39: t CO2e/t HRC steel
A41: Feedstocks to Ironmaking Step ONLY (Blast Furnace)
A42: Iron ore fines (imported) | D42: =F42*'Assumptions - Low-C Elec'!C14 -> 0 | E42: $/t HRC steel | F42: 0 | G42: t Fe/t HRC steel | H42: =F42*SUM(H105:H112) -> 0 | I42: t CO2e/t HRC steel | K42: ='Assumptions - Low-C Elec'!I14*F42 -> 0 | L42: t CO2e/t HRC steel
A43: Iron ore fines (US - Taconite) | D43: =F43*'Assumptions - Low-C Elec'!C15 -> 456 | E43: $/t HRC steel | F43: 4 | G43: t Fe/t HRC steel | H43: =F43*SUM(H115:H122) -> 0.08302211059 | I43: t CO2e/t HRC steel | K43: ='Assumptions - Low-C Elec'!I15*F43 -> 0 | L43: t CO2e/t HRC steel
A44: Scrap | D44: =F44*'Assumptions - Low-C Elec'!C16 -> 25 | E44: $/t HRC steel | F44: =0.25*('Assumptions - Low-C Elec'!B15) -> 0.0625 | G44: t scrap/t HRC steel | H44: ='Assumptions - Low-C Elec'!F16*F44 -> 0.0125 | I44: t CO2e/t HRC steel | K44: ='Assumptions - Low-C Elec'!I16*F44 -> 0 | L44: t CO2e/t HRC steel
A45: Biomass | D45: =F45*'Assumptions - Low-C Elec'!C17 -> 0 | E45: $/t HRC steel | F45: 0 | G45: t biomass/t HRC steel | H45: ='Assumptions - Low-C Elec'!F17*F45 -> 0 | I45: t CO2e/t HRC steel | K45: ='Assumptions - Low-C Elec'!I17*F45 -> 0 | L45: t CO2e/t HRC steel
A46: Biocharcoal | D46: =F46*'Assumptions - Low-C Elec'!C18 -> 0 | E46: $/t HRC steel | F46: 0 | G46: t biocharcoal/t HRC steel | H46: ='Assumptions - Low-C Elec'!F18*F46 -> 0 | I46: t CO2e/t HRC steel | K46: ='Assumptions - Low-C Elec'!I18*F46 -> 0 | L46: t CO2e/t HRC steel
A47: Electrolysis Hydrogen | D47: =F47*'Assumptions - Low-C Elec'!C19 -> 0 | E47: $/t HRC steel | F47: 0 | G47: t H2/t HRC steel | H47: ='Assumptions - Low-C Elec'!F19*F47 -> 0 | I47: t CO2e/t HRC steel | K47: ='Assumptions - Low-C Elec'!I19*F47 -> 0 | L47: t CO2e/t HRC steel
A48: Lime | D48: =F48*'Assumptions - Low-C Elec'!C20 -> 10.5 | E48: $/t HRC steel | F48: =150/2000 -> 0.075 | G48: t lime/t HRC steel | H48: ='Assumptions - Low-C Elec'!F20*F48 -> 0.000825 | I48: t CO2e/t HRC steel | K48: ='Assumptions - Low-C Elec'!I20*F48 -> 0 | L48: t CO2e/t HRC steel
A50: Feedstocks to Steelmaking Step ONLY (Basic Oxygen Furnace)
A51: Iron ore fines (imported) | D51: =F51*'Assumptions - Low-C Elec'!C14 -> 0 | E51: $/t HRC steel | F51: 0 | G51: t Fe/t HRC steel | H51: =F51*SUM(H105:H112) -> 0 | I51: t CO2e/t HRC steel | K51: ='Assumptions - Low-C Elec'!I14*F51 -> 0 | L51: t CO2e/t HRC steel
A52: Iron ore fines (US - Taconite) | D52: =F52*'Assumptions - Low-C Elec'!C15 -> 0 | E52: $/t HRC steel | F52: 0 | G52: t Fe/t HRC steel | H52: =F52*SUM(H115:H122) -> 0 | I52: t CO2e/t HRC steel | K52: ='Assumptions - Low-C Elec'!I15*F52 -> 0 | L52: t CO2e/t HRC steel
A53: Scrap | D53: =F53*'Assumptions - Low-C Elec'!C16 -> 0 | E53: $/t HRC steel | F53: =0.25*('Assumptions - Low-C Elec'!B25) -> 0 | G53: t scrap/t HRC steel | H53: ='Assumptions - Low-C Elec'!F16*F53 -> 0 | I53: t CO2e/t HRC steel | K53: ='Assumptions - Low-C Elec'!I16*F53 -> 0 | L53: t CO2e/t HRC steel
A54: Biomass | D54: =F54*'Assumptions - Low-C Elec'!C17 -> 0 | E54: $/t HRC steel | F54: 0 | G54: t biomass/t HRC steel | H54: ='Assumptions - Low-C Elec'!F17*F54 -> 0 | I54: t CO2e/t HRC steel | K54: ='Assumptions - Low-C Elec'!I17*F54 -> 0 | L54: t CO2e/t HRC steel
A55: Biocharcoal | D55: =F55*'Assumptions - Low-C Elec'!C18 -> 0 | E55: $/t HRC steel | F55: 0 | G55: t biocharcoal/t HRC steel | H55: ='Assumptions - Low-C Elec'!F18*F55 -> 0 | I55: t CO2e/t HRC steel | K55: ='Assumptions - Low-C Elec'!I18*F55 -> 0 | L55: t CO2e/t HRC steel
A56: Electrolysis Hydrogen | D56: =F56*'Assumptions - Low-C Elec'!C19 -> 0 | E56: $/t HRC steel | F56: 0 | G56: t H2/t HRC steel | H56: ='Assumptions - Low-C Elec'!F19*F56 -> 0 | I56: t CO2e/t HRC steel | K56: ='Assumptions - Low-C Elec'!I19*F56 -> 0 | L56: t CO2e/t HRC steel
A57: Lime | D57: =F57*'Assumptions - Low-C Elec'!C20 -> 0 | E57: $/t HRC steel | F57: 0 | G57: t lime/t HRC steel | H57: ='Assumptions - Low-C Elec'!F20*F57 -> 0 | I57: t CO2e/t HRC steel | K57: ='Assumptions - Low-C Elec'!I20*F57 -> 0 | L57: t CO2e/t HRC steel
A59: Life Cycle Stages | F59: Energy Input | G59: Unit
A60: Hot Rolling | D60: 5 | E60: $/t HRC
A61: Natural Gas | E61: =F61*'Assumptions - Today''s Grid'!C23 -> 1.721534635 | F61: =CONVERT(0.63*1000000,"BTU","GJ") -> 0.6646851872 | G61: GJ/t HRC | H61: =F61*('Assumptions - Low-C Elec'!$F$24+'Assumptions - Low-C Elec'!$I$24) -> 0.0518454446 | I61: t CO2e/t HRC | J61: Base value from GREET2 2022
A62: Electricity | E62: =F62*'Assumptions - Today''s Grid'!C26 -> 14.44255389 | F62: =CONVERT(1000000*0.704,"BTU","GJ") -> 0.7427593202 | G62: GJ/t HRC | H62: =F62*('Assumptions - Low-C Elec'!$F$27+'Assumptions - Low-C Elec'!$I$27) -> 0.01444254234 | I62: t CO2e/t HRC | J62: Base value from GREET2 2022
A63: Biomass | E63: =F63*'Assumptions - Today''s Grid'!C17 -> 0 | F63: 0 | G63: t/t HRC | H63: =F63*('Assumptions - Low-C Elec'!$F$17+'Assumptions - Low-C Elec'!$I$17) -> 0 | I63: t CO2e/t HRC | J63: Base value from GREET2 2022
A64: Fossil SMR Hydrogen | E64: =F64*'Assumptions - Today''s Grid'!C28 -> 0 | F64: 0 | G64: GJ/t HRC | H64: =F64*('Assumptions - Low-C Elec'!$F$28+'Assumptions - Low-C Elec'!$I$28) -> 0 | I64: t CO2e/t HRC
A65: Fossil SMR+CCS Hydrogen | E65: =F65*'Assumptions - Today''s Grid'!C29 -> 0 | F65: 0 | G65: GJ/t HRC | H65: =F65*('Assumptions - Low-C Elec'!$F$29+'Assumptions - Low-C Elec'!$I$29) -> 0 | I65: t CO2e/t HRC
A66: Electrolysis Hydrogen (US) | E66: =F66*'Assumptions - Today''s Grid'!C30 -> 0 | F66: 0 | G66: GJ/t HRC | H66: =F66*('Assumptions - Low-C Elec'!$F$30+'Assumptions - Low-C Elec'!$I$30) -> 0 | I66: t CO2e/t HRC
A68: Sintering | D68: 2 | E68: $/t HRC
A69: Natural Gas | E69: =F69*'Assumptions - Today''s Grid'!C23 -> 0 | F69: 0 | G69: GJ/t HRC | H69: =F69*('Assumptions - Low-C Elec'!$F$24+'Assumptions - Low-C Elec'!$I$24) -> 0 | I69: t CO2e/t HRC | J69: Base value from GREET2 2022
A70: Electricity | E70: =F70*'Assumptions - Today''s Grid'!C26 -> 3.138793673 | F70: =CONVERT(1000000*0.153,"BTU","GJ") -> 0.1614235455 | G70: GJ/t HRC | H70: =F70*('Assumptions - Low-C Elec'!$F$27+'Assumptions - Low-C Elec'!$I$27) -> 0.003138791162 | I70: t CO2e/t HRC | J70: Base value from GREET2 2022
A71: Biomass | E71: =F71*'Assumptions - Today''s Grid'!C17 -> 0 | F71: 0 | G71: GJ/t HRC | H71: =F71*('Assumptions - Low-C Elec'!$F$17+'Assumptions - Low-C Elec'!$I$17) -> 0 | I71: t CO2e/t HRC | J71: Base value from GREET2 2022
A72: Fossil SMR Hydrogen | E72: =F72*'Assumptions - Today''s Grid'!C28 -> 0 | F72: 0 | G72: GJ/t HRC | H72: =F72*('Assumptions - Low-C Elec'!$F$28+'Assumptions - Low-C Elec'!$I$28) -> 0 | I72: t CO2e/t HRC
A73: Fossil SMR+CCS Hydrogen | E73: =F73*'Assumptions - Today''s Grid'!C29 -> 0 | F73: 0 | G73: GJ/t HRC | H73: =F73*('Assumptions - Low-C Elec'!$F$29+'Assumptions - Low-C Elec'!$I$29) -> 0 | I73: t CO2e/t HRC
A74: Electrolysis Hydrogen (US) | E74: =F74*'Assumptions - Today''s Grid'!C30 -> 0 | F74: 0 | G74: GJ/t HRC | H74: =F74*('Assumptions - Low-C Elec'!$F$30+'Assumptions - Low-C Elec'!$I$30) -> 0 | I74: t CO2e/t HRC
A75: Coke | E75: =F75*'Assumptions - Today''s Grid'!C24 -> 2.781306587 | F75: =CONVERT(1.103*1000000,"BTU","GJ") -> 1.163726605 | G75: GJ/t HRC | H75: =F75*('Assumptions - Low-C Elec'!$F$25+'Assumptions - Low-C Elec'!$I$25) -> 0.1349922862 | I75: t CO2e/t HRC
A77: Stamping | D77: 2 | E77: $/t HRC
A78: Natural Gas | E78: =F78*'Assumptions - Today''s Grid'!C23 -> 0 | F78: 0 | G78: GJ/t HRC | H78: =F78*('Assumptions - Low-C Elec'!$F$24+'Assumptions - Low-C Elec'!$I$24) -> 0 | I78: t CO2e/t HRC | J78: Base value from GREET2 2022
A79: Electricity | E79: =F79*'Assumptions - Today''s Grid'!C26 -> 17.64289254 | F79: =CONVERT(1000000*0.86,"BTU","GJ") -> 0.9073480333 | G79: GJ/t HRC | H79: =F79*('Assumptions - Low-C Elec'!$F$27+'Assumptions - Low-C Elec'!$I$27) -> 0.01764287842 | I79: t CO2e/t HRC | J79: Base value from GREET2 2022
A80: Biomass | E80: =F80*'Assumptions - Today''s Grid'!C17 -> 0 | F80: 0 | G80: GJ/t HRC | H80: =F80*('Assumptions - Low-C Elec'!$F$17+'Assumptions - Low-C Elec'!$I$17) -> 0 | I80: t CO2e/t HRC | J80: Base value from GREET2 2022
A81: Fossil SMR Hydrogen | E81: =F81*'Assumptions - Today''s Grid'!C27 -> 0 | F81: 0 | G81: GJ/t HRC | H81: =F81*('Assumptions - Low-C Elec'!$F$28+'Assumptions - Low-C Elec'!$I$28) -> 0 | I81: t CO2e/t HRC
A82: Fossil SMR+CCS Hydrogen | E82: =F82*'Assumptions - Today''s Grid'!C28 -> 0 | F82: 0 | G82: GJ/t HRC | H82: =F82*('Assumptions - Low-C Elec'!$F$29+'Assumptions - Low-C Elec'!$I$29) -> 0 | I82: t CO2e/t HRC
A83: Electrolysis Hydrogen (US) | E83: =F83*'Assumptions - Today''s Grid'!C29 -> 0 | F83: 0 | G83: GJ/t HRC | H83: =F83*('Assumptions - Low-C Elec'!$F$30+'Assumptions - Low-C Elec'!$I$30) -> 0 | I83: t CO2e/t HRC
A85: Skin Mill | D85: 1 | E85: $/t HRC
A86: Natural Gas | E86: =F86*'Assumptions - Today''s Grid'!C23 -> 0 | F86: 0 | G86: GJ/t HRC | H86: =F86*('Assumptions - Low-C Elec'!$F$24+'Assumptions - Low-C Elec'!$I$24) -> 0 | I86: t CO2e/t HRC | J86: Base value from GREET2 2022
A87: Electricity | E87: =F87*'Assumptions - Today''s Grid'!C26 -> 0.8616296356 | F87: =CONVERT(1000000*0.042,"BTU","GJ") -> 0.04431234581 | G87: GJ/t HRC | H87: =F87*('Assumptions - Low-C Elec'!$F$27+'Assumptions - Low-C Elec'!$I$27) -> 0.0008616289463 | I87: t CO2e/t HRC | J87: Base value from GREET2 2022
A88: Biomass | E88: =F88*'Assumptions - Today''s Grid'!C17 -> 0 | F88: 0 | G88: GJ/t HRC | H88: =F88*('Assumptions - Low-C Elec'!$F$17+'Assumptions - Low-C Elec'!$I$17) -> 0 | I88: t CO2e/t HRC | J88: Base value from GREET2 2022
A89: Fossil SMR Hydrogen | E89: =F89*'Assumptions - Today''s Grid'!C27 -> 0 | F89: 0 | G89: GJ/t HRC | H89: =F89*('Assumptions - Low-C Elec'!$F$28+'Assumptions - Low-C Elec'!$I$28) -> 0 | I89: t CO2e/t HRC
A90: Fossil SMR+CCS Hydrogen | E90: =F90*'Assumptions - Today''s Grid'!C28 -> 0 | F90: 0 | G90: GJ/t HRC | H90: =F90*('Assumptions - Low-C Elec'!$F$29+'Assumptions - Low-C Elec'!$I$29) -> 0 | I90: t CO2e/t HRC
A91: Electrolysis Hydrogen (US) | E91: =F91*'Assumptions - Today''s Grid'!C29 -> 0 | F91: 0 | G91: GJ/t HRC | H91: =F91*'Assumptions - Low-C Elec'!$F$30+'Assumptions - Low-C Elec'!$I$30 -> 0 | I91: t CO2e/t HRC
A93: EAF | E93: $/t HRC
A94: Natural Gas | E94: =F94*'Assumptions - Today''s Grid'!C23 -> 0 | F94: 0 | G94: GJ/t HRC | H94: =F94*('Assumptions - Low-C Elec'!$F$24+'Assumptions - Low-C Elec'!$I$24) -> 0 | I94: t CO2e/t HRC | J94: Base value from GREET2 2022
A95: Electricity | E95: =F95*'Assumptions - Today''s Grid'!C26 -> 0 | F95: 0 | G95: GJ/t HRC | H95: =F95*('Assumptions - Low-C Elec'!$F$27+'Assumptions - Low-C Elec'!$I$27) -> 0 | I95: t CO2e/t HRC | J95: Base value from GREET2 2022
A96: Biomass | E96: =F96*'Assumptions - Today''s Grid'!C17 -> 0 | F96: 0 | G96: GJ/t HRC | H96: =F96*('Assumptions - Low-C Elec'!$F$17+'Assumptions - Low-C Elec'!$I$17) -> 0 | I96: t CO2e/t HRC | J96: Base value from GREET2 2022
A97: Fossil SMR Hydrogen | E97: =F97*'Assumptions - Today''s Grid'!C27 -> 0 | F97: 0 | G97: GJ/t HRC | H97: =F97*('Assumptions - Low-C Elec'!$F$28+'Assumptions - Low-C Elec'!$I$28) -> 0 | I97: t CO2e/t HRC
A98: Fossil SMR+CCS Hydrogen | E98: =F98*'Assumptions - Today''s Grid'!C28 -> 0 | F98: 0 | G98: GJ/t HRC | H98: =F98*('Assumptions - Low-C Elec'!$F$29+'Assumptions - Low-C Elec'!$I$29) -> 0 | I98: t CO2e/t HRC
A99: Electrolysis Hydrogen (US) | E99: =F99*'Assumptions - Today''s Grid'!C29 -> 0 | F99: 0 | G99: GJ/t HRC | H99: =F99*('Assumptions - Low-C Elec'!$F$30+'Assumptions - Low-C Elec'!$I$30) -> 0 | I99: t CO2e/t HRC
A100: Coke | E100: =F100*'Assumptions - Today''s Grid'!C24 -> 0 | F100: 0 | G100: GJ/t HRC | H100: =F100*('Assumptions - Low-C Elec'!$F$25+'Assumptions - Low-C Elec'!$I$25) -> 0 | I100: t CO2e/t HRC
A101: Scrap | E101: =F101*'Assumptions - Today''s Grid'!C16 -> 0 | F101: 0 | G101: t/t HRC | H101: =F101*('Assumptions - Low-C Elec'!$F$16+'Assumptions - Low-C Elec'!$I$16) -> 0 | I101: t CO2e/t HRC
A102: Iron Ore | E102: =F102*'Assumptions - Today''s Grid'!C14 -> 0 | F102: 0 | G102: t/t HRC | H102: =F102*'Assumptions - Low-C Elec'!$F$15 -> 0 | I102: t CO2e/t HRC
A104: Extraction + Beneficiation (Imported high quality) | E104: $/t HRC
A105: Natural Gas | E105: =F105*'Assumptions - Today''s Grid'!C23 -> 0.03525928591 | F105: =CONVERT(0.008*1000000,"BTU","GJ")/'Assumptions - Low-C Elec'!$B$14 -> 0.0136136239 | G105: GJ/t Fe (adjusted for Fe content in ore) | H105: =F105*('Assumptions - Low-C Elec'!$F$24+'Assumptions - Low-C Elec'!$I$24) -> 0.001061862665 | I105: t CO2e/t Fe (adjusted for Fe content in ore)
A106: Electricity | E106: =F106*'Assumptions - Today''s Grid'!C26 -> 2.614006959 | F106: =CONVERT(0.079*1000000,"BTU","GJ")/'Assumptions - Low-C Elec'!$B$14 -> 0.1344345361 | G106: GJ/t Fe (adjusted for Fe content in ore) | H106: =F106*('Assumptions - Low-C Elec'!$F$27+'Assumptions - Low-C Elec'!$I$27) -> 0.002614004868 | I106: t CO2e/t Fe (adjusted for Fe content in ore)
A107: Biomass | E107: =F107*'Assumptions - Today''s Grid'!C17 -> 0 | F107: 0 | G107: GJ/t Fe (adjusted for Fe content in ore) | H107: =F107*('Assumptions - Low-C Elec'!$F$17+'Assumptions - Low-C Elec'!$I$17) -> 0 | I107: t CO2e/t Fe (adjusted for Fe content in ore)
A108: Fossil SMR Hydrogen | E108: =F108*'Assumptions - Today''s Grid'!C27 -> 0 | F108: 0 | G108: GJ/t Fe (adjusted for Fe content in ore) | H108: =F108*('Assumptions - Low-C Elec'!$F$28+'Assumptions - Low-C Elec'!$I$28) -> 0 | I108: t CO2e/t Fe (adjusted for Fe content in ore)
A109: Fossil SMR+CCS Hydrogen | E109: =F109*'Assumptions - Today''s Grid'!C28 -> 0 | F109: 0 | G109: GJ/t Fe (adjusted for Fe content in ore) | H109: =F109*('Assumptions - Low-C Elec'!$F$29+'Assumptions - Low-C Elec'!$I$29) -> 0 | I109: t CO2e/t Fe (adjusted for Fe content in ore)
A110: Electrolysis Hydrogen (US) | E110: =F110*'Assumptions - Today''s Grid'!C29 -> 0 | F110: 0 | G110: GJ/t Fe (adjusted for Fe content in ore) | H110: =F110*('Assumptions - Low-C Elec'!$F$30+'Assumptions - Low-C Elec'!$I$30) -> 0 | I110: t CO2e/t Fe (adjusted for Fe content in ore)
A111: Fossil Diesel | E111: =F111*'Assumptions - Today''s Grid'!C30 -> 1.580645161 | F111: =CONVERT(0.028*1000000,"BTU","GJ")/'Assumptions - Low-C Elec'!$B$14 -> 0.04764768367 | G111: GJ/t Fe (adjusted for Fe content in ore) | H111: =F111*('Assumptions - Low-C Elec'!$F$31+'Assumptions - Low-C Elec'!$I$31) -> 0.004383586897 | I111: t CO2e/t Fe (adjusted for Fe content in ore)
A112: Fossil Gasoline | E112: =F112*'Assumptions - Today''s Grid'!C31 -> 0.09677419355 | F112: =CONVERT(0.002*1000000,"BTU","GJ")/'Assumptions - Low-C Elec'!$B$14 -> 0.003403405976 | G112: GJ/t Fe (adjusted for Fe content in ore) | H112: =F112*('Assumptions - Low-C Elec'!$F$32+'Assumptions - Low-C Elec'!$I$32) -> 0.0003097099438 | I112: t CO2e/t Fe (adjusted for Fe content in ore)
A114: Extraction + Beneficiation (US Taconite) | E114: $/t HRC
A115: Natural Gas | E115: =F115*'Assumptions - Today''s Grid'!C23 -> 0.08744302907 | F115: =CONVERT(0.008*1000000,"BTU","GJ")/'Assumptions - Low-C Elec'!$B$15 -> 0.03376178728 | G115: GJ/t Fe (adjusted for Fe content in ore) | H115: =F115*('Assumptions - Low-C Elec'!$F$24+'Assumptions - Low-C Elec'!$I$24) -> 0.002633419408 | I115: t CO2e/t Fe (adjusted for Fe content in ore)
A116: Electricity | E116: =F116*'Assumptions - Today''s Grid'!C26 -> 6.482737258 | F116: =CONVERT(0.079*1000000,"BTU","GJ")/'Assumptions - Low-C Elec'!$B$15 -> 0.3333976494 | G116: GJ/t Fe (adjusted for Fe content in ore) | H116: =F116*('Assumptions - Low-C Elec'!$F$27+'Assumptions - Low-C Elec'!$I$27) -> 0.006482732072 | I116: t CO2e/t Fe (adjusted for Fe content in ore)
A117: Biomass | E117: =F117*'Assumptions - Today''s Grid'!C27 -> 0 | F117: 0 | G117: GJ/t Fe (adjusted for Fe content in ore) | H117: =F117*('Assumptions - Low-C Elec'!$F$17+'Assumptions - Low-C Elec'!$I$17) -> 0 | I117: t CO2e/t Fe (adjusted for Fe content in ore)
A118: Fossil SMR Hydrogen | E118: =F118*'Assumptions - Today''s Grid'!C28 -> 0 | F118: 0 | G118: GJ/t Fe (adjusted for Fe content in ore) | H118: =F118*('Assumptions - Low-C Elec'!$F$28+'Assumptions - Low-C Elec'!$I$28) -> 0 | I118: t CO2e/t Fe (adjusted for Fe content in ore)
A119: Fossil SMR+CCS Hydrogen | E119: =F119*'Assumptions - Today''s Grid'!C29 -> 0 | F119: 0 | G119: GJ/t Fe (adjusted for Fe content in ore) | H119: =F119*('Assumptions - Low-C Elec'!$F$29+'Assumptions - Low-C Elec'!$I$29) -> 0 | I119: t CO2e/t Fe (adjusted for Fe content in ore)
A120: Electrolysis Hydrogen (US) | E120: =F120*'Assumptions - Today''s Grid'!C30 -> 0 | F120: 0 | G120: GJ/t Fe (adjusted for Fe content in ore) | H120: =F120*('Assumptions - Low-C Elec'!$F$30+'Assumptions - Low-C Elec'!$I$30) -> 0 | I120: t CO2e/t Fe (adjusted for Fe content in ore)
A121: Fossil Diesel | E121: =F121*'Assumptions - Today''s Grid'!C31 -> 3.36 | F121: =CONVERT(0.028*1000000,"BTU","GJ")/'Assumptions - Low-C Elec'!$B$15 -> 0.1181662555 | G121: GJ/t Fe (adjusted for Fe content in ore) | H121: =F121*('Assumptions - Low-C Elec'!$F$31+'Assumptions - Low-C Elec'!$I$31) -> 0.01087129551 | I121: t CO2e/t Fe (adjusted for Fe content in ore)
A122: Fossil Gasoline | E122: =F122*'Assumptions - Today''s Grid'!C32 -> 0 | F122: =CONVERT(0.002*1000000,"BTU","GJ")/'Assumptions - Low-C Elec'!$B$15 -> 0.008440446821 | G122: GJ/t Fe (adjusted for Fe content in ore) | H122: =F122*('Assumptions - Low-C Elec'!$F$32+'Assumptions - Low-C Elec'!$I$32) -> 0.0007680806607 | I122: t CO2e/t Fe (adjusted for Fe content in ore)

Sheet Assumptions - Today's Grid
A1: Assumptions
A2: Instructions: Standard assumptions are provided below; do not change them. To add alternate assumptions, feel free to insert as many rows as needed per section (see 'Alternate inputs (applicant-added) green rows).
A3: Input Variable | C3: Value | D3: Cost Units | F3: Value | G3: Non-biogenic Embodied Emissions Unit | I3: Value | J3: Non-biogenic Process Emissions (i.e. chemical or combustion) | K3: Cost Reference | L3: Emissions Reference
A5: Operational Assumptions
A6: Equipment availability | C6: 95 | D6: % | K6: IEA Iron & Steel Roadmap, Oct. 2020 (IEA, 2020) Fig 1.3 | L6: n/a
A7: Equipment lifetime | C7: 25 | D7: years | K7: IEA, 2020 Fig 1.3 | L7: n/a
A8: Cost of capital | C8: 8 | D8: % | K8: IEA, 2020 Fig 1.3 | L8: n/a
A9: Capital recovery factor (CRF) | C9: =(C8/100*(1+C8/100)^C7)/((1+C8/100)^C7-1) -> 0.09367877905 | K9: Calculated from above | L9: n/a
A10: Carbon capture rate | C10: 90 | D10: % | K10: climate.mit.edu/ask-mit/how-efficient-carbon-capture-and-storage | L10: n/a
A11: On-site Hydrogen Electrolyzer Energy Consumpition | C11: 52 | D11: kWh/kg H2 | G11: =F29/F27 -> 1.765263158
A13: Feedstock Assumptions | B13: %Fe
A14: Iron ore fines (imported) | B14: 0.62 | C14: 106 | D14: $/tonne Fe | F14: =SUM('BF-BOF - Today''s Grid'!H105:H112) -> 0.02020687213 | G14: t CO2e/t Fe | I14: 0 | J14: t CO2e/t Fe | K14: USGS Mineral Yearbook 2021 | L14: GREET2 2022 Iron Ore Extraction & Processing on Steel Sheet | M14: SGX TSI Iron Ore mean price 2015-2020, https://www.barchart.com/futures/quotes/J-M20
A15: Iron ore fines (US - Taconite) | B15: 0.25 | C15: 114 | D15: $/tonne Fe | F15: =SUM('BF-BOF - Today''s Grid'!H115:H122) -> 0.05011304289 | G15: t CO2e/t Fe | I15: 0 | J15: t CO2e/t Fe | K15: Internal estimate
A16: Scrap | B16: 0.98 | C16: 400 | D16: $/tonne Fe | F16: 0.2 | G16: t CO2e/t Fe | I16: 0 | J16: t CO2e/t Fe | K16: IEA, 2020 Fig 1.3 | L16: Ashby, Michael F. 'Materials and the Environment: Eco-informed Material Choice', Butterworth Heinemann, 2009. 2nd Edition 2012 ISBN 9780123859716
A17: Biomass | C17: 3.7 | D17: $/GJ | F17: 0.07 | G17: t CO2e/t dry biomass | I17: 0 | J17: t CO2e/t dry biomass | K17: Assume $60/dry ton from 2016 Billion Ton Study and ~18 MJ/kg | L17: GREET2020: poplar combined feedstock emissions
A18: Biocharcoal | C18: 300 | D18: tonne | F18: =AVERAGE((19.38+0.67+18.39+1.34),(21.76+12.03+1.34+1.34))/1000+0.0308 -> 0.068925 | G18: t CO2e/t biocharcoal | I18: 0 | J18: t CO2e / t biocharcoal | K18: Internal projection for 2050 | L18: Page 24 and Appendices 5 and 6 of "Life Cycle Assessment and Carbon Footprint for the Production of Biochar as an Alternative of Soil Remediation," Alfonso R. Rodriguez, 2013
A19: Electrolysis Hydrogen | C19: 5 | D19: $/kg H2 | F19: =C11*F25/1000 -> 20.124 | G19: kg CO2/kg H2 | I19: 0 | J19: t CO2e/t H2 | K19: Internal projection for 2050 | L19: Electrolysis H2 embodied emissions from grid intensity assumption. Assume 53 kWh/kg H2 for electrolysis, purification, separation, compression, conveyance.
A20: Lime | C20: 140 | D20: $/tonne lime | F20: 0.011 | G20: t CO2e/t lime | I20: 0 | J20: t CO2e/t lime | K20: Assume quicklime from https://pubs.usgs.gov/periodicals/mcs2022/mcs2022-lime.pdf | L20: All emissions are embedded for the material
A22: Fuel Assumptions
A23: Natural gas | C23: 2.59 | D23: $/GJ | F23: 0.011 | G23: t CO2e/GJ LHV | I23: 0.067 | J23: t CO2e/GJ LHV | K23: NG spot prices | L23: Natural gas process emissions if fully combusted; GREET2020
A24: Coke | C24: 2.39 | D24: $/GJ | F24: 0.006 | G24: t CO2e/GJ | I24: 0.11 | J24: t CO2e/GJ | K24: Internal estimate | L24: Coke/coal process emissions if fully combusted; Coal to coking plants GREET2020. Use combustion emissions only if not using blast furnace/coke oven gas downstream.
A25: Electricity | C25: 0.07 | D25: $/kWh | F25: 387 | G25: g CO2e/kWh | I25: 0 | J25: g CO2e/kWh | L25: EIA Outlook for 2023 national grid mix.
A26: Electricity | C26: =C25*277.778 -> 19.44446 | D26: $/GJ | F26: =F25/1000000/0.0036 -> 0.1075 | G26: t CO2e/GJ | I26: 0 | J26: t CO2e/GJ | K26: Equivalent values to row 25; given here in alternate units | L26: Assume ~90% reduction from 2020 national average grid using solar and wind
A27: Fossil SMR Hydrogen (US) | C27: 16.7 | D27: $/GJ | F27: 0.095 | G27: t CO2e/GJ | I27: 0 | J27: t CO2e/GJ | K27: Spot price | L27: GREET 2022 plus leakage rate for Iron & Steel and indirect GWP of H2 gas from (REFs)
A28: Fossil SMR+CCS Hydrogen (US) | C28: 25 | D28: $/GJ | F28: 0.045 | G28: t CO2e/GJ | I28: 0 | J28: t CO2e/GJ | L28: GREET 2022 plus leakage rate for Iron & Steel from (REF) and indirect GWP of H2 gas from (REFs)
A29: Electrolysis Hydrogen (US) | C29: =C19/120*1000 -> 41.66666667 | D29: $/GJ | F29: =C11*F25/120/1000 -> 0.1677 | G29: t CO2e/GJ | I29: 0 | J29: t CO2e/GJ | K29: Assume 120 MJ/kg LHV
A30: Fossil Diesel | C30: =35*CONVERT(1,"GJ","BTU")/1000000 -> 33.17359921 | D30: $/GJ | F30: 0.016 | G30: t CO2e/GJ | I30: 0.076 | J30: t CO2e/GJ | K30: Spot/commodity price | L30: GREET 2022 conventional fossil diesel
A31: Fossil Gasoline | C31: =30*CONVERT(1,"GJ","BTU")/1000000 -> 28.43451361 | D31: $/GJ | F31: 0.018 | G31: t CO2e/GJ | I31: 0.073 | J31: t CO2e/GJ | K31: Spot/commodity price | L31: GREET 2022 conventional fossil gasoline
A33: Transportation Assumptions | L33: Note: all emissions associated with construction, maintenance, and dispoal of transport vehicles as well as production of the fuels are all aggregated into the numbers in column I
A34: Shipping solids worldwide (ocean) | C34: 0.02 | D34: $/tonne-mile | F34: 0 | G34: tonne CO2e/tonne-mile freight | I34: =6.95/1000000 -> 6.95e-06 | J34: tonne CO2e/tonne-mile freight | K34: https://www.steelonthenet.com/freight.html; internal estimate | L34: GREET2020; Sea transit HFO (0.5% S fuel).
A35: Rail | C35: 0.03 | D35: $/tonne-mile | F35: 0 | G35: tonne CO2e/tonne-mile freight | I35: =41.3/1000000 -> 4.13e-05 | J35: tonne CO2e/tonne-mile freight | K35: Trains Magazine, https://cs.trains.com/trn/f/111/p/187338/2048866.aspx#:~:text=The%20average%20rate%20per%20ton-mile%20%28one%20ton%20of,year%202009%2C%20the%20average%20rate%20was%203.011%20cents. | L35: GREET 2020; diesel rail
A36: Diesel Truck | C36: 0.06 | D36: $/tonne-mile | F36: 0 | G36: tonne CO2e/tonne-mile freight | I36: =114.5/1000000 -> 0.0001145 | J36: tonne CO2e/tonne-mile freight | K36: Internal estimate | L36: GREET 2020; long haul diesel trucking (assumed payload of 19.1 U.S. short tons)
A39: BF-BOF Assumptions
A40: BF-BOF (tot upfront cost) | C40: 600 | D40: $/t crude steel
A41: BF-BOF (annualized) | C41: =C40*C9/(C6*0.01) -> 59.16554466 | D41: $/t crude steel
A44: EAF Assumptions
A45: Electric arc furnace (tot upfront cost) | C45: 310 | D45: $/tonne HRC
A46: Electric arc furnace (annualized) | C46: =C45*C9/(C6*0.01) -> 30.56886474 | D46: $/tonne HRC | L46: Internal calcs; assumes state-of-art NG and solid carbon fuels inserted

Sheet BF-BOF - Today's Grid
A1: Notional BF-BOF Technology
A2: Input Variable | D2: Value | E2: Cost Units | F2: Value | G2: Amount/t crude steel | H2: Value | I2: Embedded emissions | K2: Value | L2: Process emissions | M2: Justification for Changes | N2: Source
A4: Capital Equipment
A5: BF + BOF (total upfront cost) | D5: ='Assumptions - Today''s Grid'!C40 -> 600 | E5: $/t HRC
A6: BF + BOF Annualized | D6: ='Assumptions - Today''s Grid'!C41 -> 59.16554466 | E6: $/t HRC
A8: On-Site Operations
A9: BF + BOF | D9: =D5*0.085 -> 51 | E9: $/t HRC
A10: Sintering | D10: =D68+SUM(E69:E75) -> 7.92010026 | E10: $/t HRC | K10: =SUM(H69:H75) -> 0.1523453174 | L10: t CO2e/t HRC steel
A11: Hot Rolling | D11: =D60+SUM(E61:E66) -> 21.16408853 | E11: $/t HRC | K11: =SUM(H61:H66) -> 0.1316920715 | L11: t CO2e/t HRC steel
A12: Stamping | D12: =D77+SUM(E78:E83) -> 19.64289254 | E12: $/t HRC | K12: =SUM(H78:H83) -> 0.09753991357 | L12: t CO2e/t HRC steel
A13: Skin Mill | D13: =D85+SUM(E86:E91) -> 1.861629636 | E13: $/t HRC | K13: =SUM(H86:H91) -> 0.004763577175 | L13: t CO2e/t HRC steel
A16: Transportation | C16: Distance (mi)
A17: Water | C17: 0 | D17: =C17*'Assumptions - Today''s Grid'!$C$34*F17 -> 0 | E17: $/t HRC steel | F17: 0 | G17: t ore/t HRC steel | H17: 0 | I17: t CO2e/t HRC steel | K17: =F17*'Assumptions - Today''s Grid'!$I$34*C17 -> 0 | L17: t CO2e/t HRC steel | N17: GREET1 2022. Fuel Embedded emissions are wrapped into the "process emissions" column as well as combustion.
A18: Rail | C18: 800 | D18: =C18*'Assumptions - Today''s Grid'!$C$35*F18 -> 96 | E18: $/t HRC steel | F18: 4 | G18: t ore/t HRC steel | H18: 0 | I18: t CO2e/t HRC steel | K18: =F18*'Assumptions - Today''s Grid'!$I$35*C18 -> 0.13216 | L18: t CO2e/t HRC steel | N18: GREET1 2022. Fuel Embedded emissions are wrapped into the "process emissions" column as well as combustion.
A19: Truck | C19: 0 | D19: =C19*'Assumptions - Today''s Grid'!$C$36*F19 -> 0 | E19: $/t HRC steel | F19: 0 | G19: t ore/t HRC steel | H19: 0 | I19: t CO2e/t HRC steel | K19: =F19*'Assumptions - Today''s Grid'!$I$36*C19 -> 0 | L19: t CO2e/t HRC steel | N19: GREET1 2022. Fuel Embedded emissions are wrapped into the "process emissions" column as well as combustion.
A21: Energy Inputs to Ironmaking Step ONLY (Blast Furnace)
A22: Natural gas | D22: =F22*'Assumptions - Today''s Grid'!C23 -> 3.99505339 | E22: $/t HRC steel | F22: =CONVERT(1.462*1000000,"BTU","GJ") -> 1.542491657 | G22: GJ/t HRC steel | H22: =F22*'Assumptions - Today''s Grid'!F23 -> 0.01696740822 | I22: t CO2e/t HRC steel | K22: =F22*'Assumptions - Today''s Grid'!I23 -> 0.103346941 | L22: t CO2e/t HRC steel
A23: Coke | D23: =F23*'Assumptions - Today''s Grid'!C24 -> 25.04688878 | E23: $/t HRC steel | F23: =CONVERT(9.933*1000000,"BTU","GJ") -> 10.47986978 | G23: GJ/t HRC steel | H23: =F23*'Assumptions - Today''s Grid'!F24 -> 0.0628792187 | I23: t CO2e/t HRC steel | K23: =F23*'Assumptions - Today''s Grid'!I24 -> 1.152785676 | L23: t CO2e/t HRC steel
A24: Electricity (2050 grid) | D24: =F24*'Assumptions - Today''s Grid'!C26 -> 4.718448005 | E24: $/t HRC steel | F24: =CONVERT(0.23*1000000,"BTU","GJ") -> 0.2426628461 | G24: GJ/t HRC steel | H24: =F24*'Assumptions - Today''s Grid'!F26 -> 0.02608625596 | I24: t CO2e/t HRC steel | K24: =F24*'Assumptions - Today''s Grid'!I25 -> 0 | L24: t CO2e/t HRC steel
A25: Fossil SMR Hydrogen (US) | D25: =F25*'Assumptions - Today''s Grid'!C27 -> 0 | E25: $/t HRC steel | F25: 0 | G25: GJ/t HRC steel | H25: =F25*'Assumptions - Today''s Grid'!F27 -> 0 | I25: t CO2e/t HRC steel | K25: =F25*'Assumptions - Today''s Grid'!I27 -> 0 | L25: t CO2e/t HRC steel
A26: Fossil SMR+CCS Hydrogen (US) | D26: =F26*'Assumptions - Today''s Grid'!C28 -> 0 | E26: $/t HRC steel | F26: 0 | G26: GJ/t HRC steel | H26: =F26*'Assumptions - Today''s Grid'!F28 -> 0 | I26: t CO2e/t HRC steel | K26: =F26*'Assumptions - Today''s Grid'!I28 -> 0 | L26: t CO2e/t HRC steel
A27: Electrolysis Hydrogen (US) | D27: =F27*'Assumptions - Today''s Grid'!C29 -> 0 | E27: $/t HRC steel | F27: 0 | G27: GJ/t HRC steel | H27: =F27*'Assumptions - Today''s Grid'!F29 -> 0 | I27: t CO2e/t HRC steel | K27: =F27*'Assumptions - Today''s Grid'!I29 -> 0 | L27: t CO2e/t HRC steel
A28: Fossil Diesel | D28: =F28*'Assumptions - Today''s Grid'!C30 -> 0 | E28: $/t HRC steel | F28: 0 | G28: GJ/t HRC steel | H28: =F28*'Assumptions - Today''s Grid'!F30 -> 0 | I28: t CO2e/t HRC steel | K28: =F28*'Assumptions - Today''s Grid'!I30 -> 0 | L28: t CO2e/t HRC steel
A29: Fossil Gasoline | D29: =F29*'Assumptions - Today''s Grid'!C31 -> 0 | E29: $/t HRC steel | F29: 0 | G29: GJ/t HRC steel | H29: =F29*'Assumptions - Today''s Grid'!F31 -> 0 | I29: t CO2e/t HRC steel | K29: =F29*'Assumptions - Today''s Grid'!I31 -> 0 | L29: t CO2e/t HRC steel
A31: Energy Inputs to Steelmaking Step ONLY (Basic Oxygen Furnace)
A32: Natural gas | D32: =F32*'Assumptions - Today''s Grid'!C23 -> 0.9126866159 | E32: $/t HRC steel | F32: =CONVERT(0.334*1000000,"BTU","GJ") -> 0.3523886548 | G32: GJ/t HRC steel | H32: =F32*'Assumptions - Today''s Grid'!F23 -> 0.003876275203 | I32: t CO2e/t HRC steel | K32: =F32*'Assumptions - Today''s Grid'!I23 -> 0.02361003987 | L32: t CO2e/t HRC steel
A33: Coke | D33: =F33*'Assumptions - Today''s Grid'!C24 -> 0 | E33: $/t HRC steel | F33: 0 | G33: GJ/t HRC steel | H33: =F33*'Assumptions - Today''s Grid'!F24 -> 0 | I33: t CO2e/t HRC steel | K33: =F33*'Assumptions - Today''s Grid'!I24 -> 0 | L33: t CO2e/t HRC steel
A34: Electricity (2050 grid) | D34: =F34*'Assumptions - Today''s Grid'!C26 -> 2.256649046 | E34: $/t HRC steel | F34: =CONVERT(0.11*1000000,"BTU","GJ") -> 0.1160561438 | G34: GJ/t HRC steel | H34: =F34*'Assumptions - Today''s Grid'!F26 -> 0.01247603546 | I34: t CO2e/t HRC steel | K34: =F34*'Assumptions - Today''s Grid'!I26 -> 0 | L34: t CO2e/t HRC steel
A35: Fossil SMR Hydrogen (US) | D35: =F35*'Assumptions - Today''s Grid'!C27 -> 0 | E35: $/t HRC steel | F35: 0 | G35: GJ/t HRC steel | H35: =F35*'Assumptions - Today''s Grid'!F27 -> 0 | I35: t CO2e/t HRC steel | K35: =F35*'Assumptions - Today''s Grid'!I27 -> 0 | L35: t CO2e/t HRC steel
A36: Fossil SMR+CCS Hydrogen (US) | D36: =F36*'Assumptions - Today''s Grid'!C28 -> 0 | E36: $/t HRC steel | F36: 0 | G36: GJ/t HRC steel | H36: =F36*'Assumptions - Today''s Grid'!F28 -> 0 | I36: t CO2e/t HRC steel | K36: =F36*'Assumptions - Today''s Grid'!I28 -> 0 | L36: t CO2e/t HRC steel
A37: Electrolysis Hydrogen (US) | D37: =F37*'Assumptions - Today''s Grid'!C29 -> 0 | E37: $/t HRC steel | F37: 0 | G37: GJ/t HRC steel | H37: =F37*'Assumptions - Today''s Grid'!F29 -> 0 | I37: t CO2e/t HRC steel | K37: =F37*'Assumptions - Today''s Grid'!I29 -> 0 | L37: t CO2e/t HRC steel
A38: Fossil Diesel | D38: =F38*'Assumptions - Today''s Grid'!C30 -> 0 | E38: $/t HRC steel | F38: 0 | G38: GJ/t HRC steel | H38: =F38*'Assumptions - Today''s Grid'!F30 -> 0 | I38: t CO2e/t HRC steel | K38: =F38*'Assumptions - Today''s Grid'!I30 -> 0 | L38: t CO2e/t HRC steel
A39: Fossil Gasoline | D39: =F39*'Assumptions - Today''s Grid'!C31 -> 0 | E39: $/t HRC steel | F39: 0 | G39: GJ/t HRC steel | H39: =F39*'Assumptions - Today''s Grid'!F31 -> 0 | I39: t CO2e/t HRC steel | K39: =F39*'Assumptions - Today''s Grid'!I31 -> 0 | L39: t CO2e/t HRC steel
A41: Feedstocks to Ironmaking Step ONLY (Blast Furnace)
A42: Iron ore fines (imported) | D42: =F42*'Assumptions - Today''s Grid'!C14 -> 0 | E42: $/t HRC steel | F42: 0 | G42: t Fe/t HRC steel | H42: =F42*SUM(H105:H112) -> 0 | I42: t CO2e/t HRC steel | K42: ='Assumptions - Today''s Grid'!I14*F42 -> 0 | L42: t CO2e/t HRC steel
A43: Iron ore fines (US - Taconite) | D43: =F43*'Assumptions - Today''s Grid'!C15 -> 456 | E43: $/t HRC steel | F43: 4 | G43: t Fe/t HRC steel | H43: =F43*SUM(H115:H122) -> 0.2004521716 | I43: t CO2e/t HRC steel | K43: ='Assumptions - Today''s Grid'!I15*F43 -> 0 | L43: t CO2e/t HRC steel
A44: Scrap | D44: =F44*'Assumptions - Today''s Grid'!C16 -> 25 | E44: $/t HRC steel | F44: =0.25*('Assumptions - Today''s Grid'!B15) -> 0.0625 | G44: t scrap/t HRC steel | H44: ='Assumptions - Today''s Grid'!F16*F44 -> 0.0125 | I44: t CO2e/t HRC steel | K44: ='Assumptions - Today''s Grid'!I16*F44 -> 0 | L44: t CO2e/t HRC steel
A45: Biomass | D45: =F45*'Assumptions - Today''s Grid'!C17 -> 0 | E45: $/t HRC steel | F45: 0 | G45: t biomass/t HRC steel | H45: ='Assumptions - Today''s Grid'!F17*F45 -> 0 | I45: t CO2e/t HRC steel | K45: ='Assumptions - Today''s Grid'!I17*F45 -> 0 | L45: t CO2e/t HRC steel
A46: Biocharcoal | D46: =F46*'Assumptions - Today''s Grid'!C18 -> 0 | E46: $/t HRC steel | F46: 0 | G46: t biocharcoal/t HRC steel | H46: ='Assumptions - Today''s Grid'!F18*F46 -> 0 | I46: t CO2e/t HRC steel | K46: ='Assumptions - Today''s Grid'!I18*F46 -> 0 | L46: t CO2e/t HRC steel
A47: Electrolysis Hydrogen | D47: =F47*'Assumptions - Today''s Grid'!C19 -> 0 | E47: $/t HRC steel | F47: 0 | G47: t H2/t HRC steel | H47: ='Assumptions - Today''s Grid'!F19*F47 -> 0 | I47: t CO2e/t HRC steel | K47: ='Assumptions - Today''s Grid'!I19*F47 -> 0 | L47: t CO2e/t HRC steel
A48: Lime | D48: =F48*'Assumptions - Today''s Grid'!C20 -> 10.5 | E48: $/t HRC steel | F48: =150/2000 -> 0.075 | G48: t lime/t HRC steel | H48: ='Assumptions - Today''s Grid'!F20*F48 -> 0.000825 | I48: t CO2e/t HRC steel | K48: ='Assumptions - Today''s Grid'!I20*F48 -> 0 | L48: t CO2e/t HRC steel
A50: Feedstocks to Steelmaking Step ONLY (Basic Oxygen Furnace)
A51: Iron ore fines (imported) | D51: =F51*'Assumptions - Today''s Grid'!C14 -> 0 | E51: $/t HRC steel | F51: 0 | G51: t Fe/t HRC steel | H51: =F51*SUM(H105:H112) -> 0 | I51: t CO2e/t HRC steel | K51: ='Assumptions - Today''s Grid'!I14*F51 -> 0 | L51: t CO2e/t HRC steel
A52: Iron ore fines (US - Taconite) | D52: =F52*'Assumptions - Today''s Grid'!C15 -> 0 | E52: $/t HRC steel | F52: 0 | G52: t Fe/t HRC steel | H52: =F52*SUM(H115:H122) -> 0 | I52: t CO2e/t HRC steel | K52: ='Assumptions - Today''s Grid'!I15*F52 -> 0 | L52: t CO2e/t HRC steel
A53: Scrap | D53: =F53*'Assumptions - Today''s Grid'!C16 -> 0 | E53: $/t HRC steel | F53: =0.25*('Assumptions - Today''s Grid'!B24) -> 0 | G53: t scrap/t HRC steel | H53: ='Assumptions - Today''s Grid'!F16*F53 -> 0 | I53: t CO2e/t HRC steel | K53: ='Assumptions - Today''s Grid'!I16*F53 -> 0 | L53: t CO2e/t HRC steel
A54: Biomass | D54: =F54*'Assumptions - Today''s Grid'!C17 -> 0 | E54: $/t HRC steel | F54: 0 | G54: t biomass/t HRC steel | H54: ='Assumptions - Today''s Grid'!F17*F54 -> 0 | I54: t CO2e/t HRC steel | K54: ='Assumptions - Today''s Grid'!I17*F54 -> 0 | L54: t CO2e/t HRC steel
A55: Biocharcoal | D55: =F55*'Assumptions - Today''s Grid'!C18 -> 0 | E55: $/t HRC steel | F55: 0 | G55: t biocharcoal/t HRC steel | H55: ='Assumptions - Today''s Grid'!F18*F55 -> 0 | I55: t CO2e/t HRC steel | K55: ='Assumptions - Today''s Grid'!I18*F55 -> 0 | L55: t CO2e/t HRC steel
A56: Electrolysis Hydrogen | D56: =F56*'Assumptions - Today''s Grid'!C19 -> 0 | E56: $/t HRC steel | F56: 0 | G56: t H2/t HRC steel | H56: ='Assumptions - Today''s Grid'!F19*F56 -> 0 | I56: t CO2e/t HRC steel | K56: ='Assumptions - Today''s Grid'!I19*F56 -> 0 | L56: t CO2e/t HRC steel
A57: Lime | D57: =F57*'Assumptions - Today''s Grid'!C20 -> 0 | E57: $/t HRC steel | F57: 0 | G57: t lime/t HRC steel | H57: ='Assumptions - Today''s Grid'!F20*F57 -> 0 | I57: t CO2e/t HRC steel | K57: ='Assumptions - Today''s Grid'!I20*F57 -> 0 | L57: t CO2e/t HRC steel
A59: Life Cycle Stages | F59: Energy Input | G59: Unit
A60: Hot Rolling | C60: Annual. CAPEX | D60: 5 | E60: $/t HRC
A61: Natural Gas | E61: =F61*'Assumptions - Today''s Grid'!C23 -> 1.721534635 | F61: =CONVERT(0.63*1000000,"BTU","GJ") -> 0.6646851872 | G61: GJ/t HRC | H61: =F61*('Assumptions - Today''s Grid'!$F$23+'Assumptions - Today''s Grid'!$I$23) -> 0.0518454446 | I61: t CO2e/t HRC | J61: Base value from GREET2 2022
A62: Electricity | E62: =F62*'Assumptions - Today''s Grid'!C26 -> 14.44255389 | F62: =CONVERT(1000000*0.704,"BTU","GJ") -> 0.7427593202 | G62: GJ/t HRC | H62: =F62*('Assumptions - Today''s Grid'!$F$26+'Assumptions - Today''s Grid'!$I$26) -> 0.07984662693 | I62: t CO2e/t HRC | J62: Base value from GREET2 2022
A63: Biomass | E63: =F63*'Assumptions - Today''s Grid'!C17 -> 0 | F63: 0 | G63: t/t HRC | H63: =F63*('Assumptions - Today''s Grid'!$F$17+'Assumptions - Today''s Grid'!$I$17) -> 0 | I63: t CO2e/t HRC | J63: Base value from GREET2 2022
A64: Fossil SMR Hydrogen | E64: =F64*'Assumptions - Today''s Grid'!C28 -> 0 | F64: 0 | G64: GJ/t HRC | H64: =F64*('Assumptions - Today''s Grid'!$F$27+'Assumptions - Today''s Grid'!$I$27) -> 0 | I64: t CO2e/t HRC
A65: Fossil SMR+CCS Hydrogen | E65: =F65*'Assumptions - Today''s Grid'!C29 -> 0 | F65: 0 | G65: GJ/t HRC | H65: =F65*('Assumptions - Today''s Grid'!$F$28+'Assumptions - Today''s Grid'!$I$28) -> 0 | I65: t CO2e/t HRC
A66: Electrolysis Hydrogen (US) | E66: =F66*'Assumptions - Today''s Grid'!C30 -> 0 | F66: 0 | G66: GJ/t HRC | H66: =F66*('Assumptions - Today''s Grid'!$F$29+'Assumptions - Today''s Grid'!$I$29) -> 0 | I66: t CO2e/t HRC
A68: Sintering | C68: Annual. CAPEX | D68: 2 | E68: $/t HRC
A69: Natural Gas | E69: =F69*'Assumptions - Today''s Grid'!C23 -> 0 | F69: 0 | G69: GJ/t HRC | H69: =F69*('Assumptions - Today''s Grid'!$F$23+'Assumptions - Today''s Grid'!$I$23) -> 0 | I69: t CO2e/t HRC | J69: Base value from GREET2 2022
A70: Electricity | E70: =F70*'Assumptions - Today''s Grid'!C26 -> 3.138793673 | F70: =CONVERT(1000000*0.153,"BTU","GJ") -> 0.1614235455 | G70: GJ/t HRC | H70: =F70*('Assumptions - Today''s Grid'!$F$26+'Assumptions - Today''s Grid'!$I$26) -> 0.01735303114 | I70: t CO2e/t HRC | J70: Base value from GREET2 2022
A71: Biomass | E71: =F71*'Assumptions - Today''s Grid'!C17 -> 0 | F71: 0 | G71: GJ/t HRC | H71: =F71*('Assumptions - Today''s Grid'!$F$17+'Assumptions - Today''s Grid'!$I$17) -> 0 | I71: t CO2e/t HRC | J71: Base value from GREET2 2022
A72: Fossil SMR Hydrogen | E72: =F72*'Assumptions - Today''s Grid'!C28 -> 0 | F72: 0 | G72: GJ/t HRC | H72: =F72*('Assumptions - Today''s Grid'!$F$27+'Assumptions - Today''s Grid'!$I$27) -> 0 | I72: t CO2e/t HRC
A73: Fossil SMR+CCS Hydrogen | E73: =F73*'Assumptions - Today''s Grid'!C29 -> 0 | F73: 0 | G73: GJ/t HRC | H73: =F73*('Assumptions - Today''s Grid'!$F$28+'Assumptions - Today''s Grid'!$I$28) -> 0 | I73: t CO2e/t HRC
A74: Electrolysis Hydrogen (US) | E74: =F74*'Assumptions - Today''s Grid'!C30 -> 0 | F74: 0 | G74: GJ/t HRC | H74: =F74*('Assumptions - Today''s Grid'!$F$29+'Assumptions - Today''s Grid'!$I$29) -> 0 | I74: t CO2e/t HRC
A75: Coke | E75: =F75*'Assumptions - Today''s Grid'!C24 -> 2.781306587 | F75: =CONVERT(1.103*1000000,"BTU","GJ") -> 1.163726605 | G75: GJ/t HRC | H75: =F75*('Assumptions - Today''s Grid'!$F$24+'Assumptions - Today''s Grid'!$I$24) -> 0.1349922862 | I75: t CO2e/t HRC
A77: Stamping | C77: Annual. CAPEX | D77: 2 | E77: $/t HRC
A78: Natural Gas | E78: =F78*'Assumptions - Today''s Grid'!C23 -> 0 | F78: 0 | G78: GJ/t HRC | H78: =F78*('Assumptions - Today''s Grid'!$F$23+'Assumptions - Today''s Grid'!$I$23) -> 0 | I78: t CO2e/t HRC | J78: Base value from GREET2 2022
A79: Electricity | E79: =F79*'Assumptions - Today''s Grid'!C26 -> 17.64289254 | F79: =CONVERT(1000000*0.86,"BTU","GJ") -> 0.9073480333 | G79: GJ/t HRC | H79: =F79*('Assumptions - Today''s Grid'!$F$26+'Assumptions - Today''s Grid'!$I$26) -> 0.09753991357 | I79: t CO2e/t HRC | J79: Base value from GREET2 2022
A80: Biomass | E80: =F80*'Assumptions - Today''s Grid'!C17 -> 0 | F80: 0 | G80: GJ/t HRC | H80: =F80*('Assumptions - Today''s Grid'!$F$17+'Assumptions - Today''s Grid'!$I$17) -> 0 | I80: t CO2e/t HRC | J80: Base value from GREET2 2022
A81: Fossil SMR Hydrogen | E81: =F81*'Assumptions - Today''s Grid'!C27 -> 0 | F81: 0 | G81: GJ/t HRC | H81: =F81*('Assumptions - Today''s Grid'!$F$27+'Assumptions - Today''s Grid'!$I$27) -> 0 | I81: t CO2e/t HRC
A82: Fossil SMR+CCS Hydrogen | E82: =F82*'Assumptions - Today''s Grid'!C28 -> 0 | F82: 0 | G82: GJ/t HRC | H82: =F82*('Assumptions - Today''s Grid'!$F$28+'Assumptions - Today''s Grid'!$I$28) -> 0 | I82: t CO2e/t HRC
A83: Electrolysis Hydrogen (US) | E83: =F83*'Assumptions - Today''s Grid'!C29 -> 0 | F83: 0 | G83: GJ/t HRC | H83: =F83*('Assumptions - Today''s Grid'!$F$29+'Assumptions - Today''s Grid'!$I$29) -> 0 | I83: t CO2e/t HRC
A85: Skin Mill | C85: Annual. CAPEX | D85: 1 | E85: $/t HRC
A86: Natural Gas | E86: =F86*'Assumptions - Today''s Grid'!C23 -> 0 | F86: 0 | G86: GJ/t HRC | H86: =F86*('Assumptions - Today''s Grid'!$F$23+'Assumptions - Today''s Grid'!$I$23) -> 0 | I86: t CO2e/t HRC | J86: Base value from GREET2 2022
A87: Electricity | E87: =F87*'Assumptions - Today''s Grid'!C26 -> 0.8616296356 | F87: =CONVERT(1000000*0.042,"BTU","GJ") -> 0.04431234581 | G87: GJ/t HRC | H87: =F87*('Assumptions - Today''s Grid'!$F$26+'Assumptions - Today''s Grid'!$I$26) -> 0.004763577175 | I87: t CO2e/t HRC | J87: Base value from GREET2 2022
A88: Biomass | E88: =F88*'Assumptions - Today''s Grid'!C17 -> 0 | F88: 0 | G88: GJ/t HRC | H88: =F88*('Assumptions - Today''s Grid'!$F$17+'Assumptions - Today''s Grid'!$I$17) -> 0 | I88: t CO2e/t HRC | J88: Base value from GREET2 2022
A89: Fossil SMR Hydrogen | E89: =F89*'Assumptions - Today''s Grid'!C27 -> 0 | F89: 0 | G89: GJ/t HRC | H89: =F89*('Assumptions - Today''s Grid'!$F$27+'Assumptions - Today''s Grid'!$I$27) -> 0 | I89: t CO2e/t HRC
A90: Fossil SMR+CCS Hydrogen | E90: =F90*'Assumptions - Today''s Grid'!C28 -> 0 | F90: 0 | G90: GJ/t HRC | H90: =F90*('Assumptions - Today''s Grid'!$F$28+'Assumptions - Today''s Grid'!$I$28) -> 0 | I90: t CO2e/t HRC
A91: Electrolysis Hydrogen (US) | E91: =F91*'Assumptions - Today''s Grid'!C29 -> 0 | F91: 0 | G91: GJ/t HRC | H91: =F91*'Assumptions - Today''s Grid'!$F$29+'Assumptions - Today''s Grid'!$I$29 -> 0 | I91: t CO2e/t HRC
A93: EAF
A94: Natural Gas | E94: =F94*'Assumptions - Today''s Grid'!C23 -> 0 | F94: 0 | G94: GJ/t HRC | H94: =F94*('Assumptions - Today''s Grid'!$F$23+'Assumptions - Today''s Grid'!$I$23) -> 0 | I94: t CO2e/t HRC | J94: Base value from GREET2 2022
A95: Electricity | E95: =F95*'Assumptions - Today''s Grid'!C26 -> 0 | F95: 0 | G95: GJ/t HRC | H95: =F95*('Assumptions - Today''s Grid'!$F$26+'Assumptions - Today''s Grid'!$I$26) -> 0 | I95: t CO2e/t HRC | J95: Base value from GREET2 2022
A96: Biomass | E96: =F96*'Assumptions - Today''s Grid'!C17 -> 0 | F96: 0 | G96: GJ/t HRC | H96: =F96*('Assumptions - Today''s Grid'!$F$17+'Assumptions - Today''s Grid'!$I$17) -> 0 | I96: t CO2e/t HRC | J96: Base value from GREET2 2022
A97: Fossil SMR Hydrogen | E97: =F97*'Assumptions - Today''s Grid'!C27 -> 0 | F97: 0 | G97: GJ/t HRC | H97: =F97*('Assumptions - Today''s Grid'!$F$27+'Assumptions - Today''s Grid'!$I$27) -> 0 | I97: t CO2e/t HRC
A98: Fossil SMR+CCS Hydrogen | E98: =F98*'Assumptions - Today''s Grid'!C28 -> 0 | F98: 0 | G98: GJ/t HRC | H98: =F98*('Assumptions - Today''s Grid'!$F$28+'Assumptions - Today''s Grid'!$I$28) -> 0 | I98: t CO2e/t HRC
A99: Electrolysis Hydrogen (US) | E99: =F99*'Assumptions - Today''s Grid'!C29 -> 0 | F99: 0 | G99: GJ/t HRC | H99: =F99*('Assumptions - Today''s Grid'!$F$29+'Assumptions - Today''s Grid'!$I$29) -> 0 | I99: t CO2e/t HRC
A100: Coke | E100: =F100*'Assumptions - Today''s Grid'!C24 -> 0 | F100: 0 | G100: GJ/t HRC | H100: =F100*('Assumptions - Today''s Grid'!$F$24+'Assumptions - Today''s Grid'!$I$24) -> 0 | I100: t CO2e/t HRC
A101: Scrap | E101: =F101*'Assumptions - Today''s Grid'!C16 -> 0 | F101: 0 | G101: t/t HRC | H101: =F101*('Assumptions - Today''s Grid'!$F$16+'Assumptions - Today''s Grid'!$I$16) -> 0 | I101: t CO2e/t HRC
A102: Iron Ore | E102: =F102*'Assumptions - Today''s Grid'!C14 -> 0 | F102: 0 | G102: t/t HRC | H102: =F102*'Assumptions - Today''s Grid'!$F$15 -> 0 | I102: t CO2e/t HRC
A104: Extraction + Beneficiation (Imported high quality)
A105: Natural Gas | E105: =F105*'Assumptions - Today''s Grid'!C23 -> 0.03525928591 | F105: =CONVERT(0.008*1000000,"BTU","GJ")/'Assumptions - Today''s Grid'!$B$14 -> 0.0136136239 | G105: GJ/t Fe (adjusted for Fe content in ore) | H105: =F105*('Assumptions - Today''s Grid'!$F$23+'Assumptions - Today''s Grid'!$I$23) -> 0.001061862665 | I105: t CO2e/t Fe (adjusted for Fe content in ore)
A106: Electricity | E106: =F106*'Assumptions - Today''s Grid'!C26 -> 2.614006959 | F106: =CONVERT(0.079*1000000,"BTU","GJ")/'Assumptions - Today''s Grid'!$B$14 -> 0.1344345361 | G106: GJ/t Fe (adjusted for Fe content in ore) | H106: =F106*('Assumptions - Today''s Grid'!$F$26+'Assumptions - Today''s Grid'!$I$26) -> 0.01445171263 | I106: t CO2e/t Fe (adjusted for Fe content in ore)
A107: Biomass | E107: =F107*'Assumptions - Today''s Grid'!C17 -> 0 | F107: 0 | G107: GJ/t Fe (adjusted for Fe content in ore) | H107: =F107*('Assumptions - Today''s Grid'!$F$17+'Assumptions - Today''s Grid'!$I$17) -> 0 | I107: t CO2e/t Fe (adjusted for Fe content in ore)
A108: Fossil SMR Hydrogen | E108: =F108*'Assumptions - Today''s Grid'!C27 -> 0 | F108: 0 | G108: GJ/t Fe (adjusted for Fe content in ore) | H108: =F108*('Assumptions - Today''s Grid'!$F$27+'Assumptions - Today''s Grid'!$I$27) -> 0 | I108: t CO2e/t Fe (adjusted for Fe content in ore)
A109: Fossil SMR+CCS Hydrogen | E109: =F109*'Assumptions - Today''s Grid'!C28 -> 0 | F109: 0 | G109: GJ/t Fe (adjusted for Fe content in ore) | H109: =F109*('Assumptions - Today''s Grid'!$F$28+'Assumptions - Today''s Grid'!$I$28) -> 0 | I109: t CO2e/t Fe (adjusted for Fe content in ore)
A110: Electrolysis Hydrogen (US) | E110: =F110*'Assumptions - Today''s Grid'!C29 -> 0 | F110: 0 | G110: GJ/t Fe (adjusted for Fe content in ore) | H110: =F110*('Assumptions - Today''s Grid'!$F$29+'Assumptions - Today''s Grid'!$I$29) -> 0 | I110: t CO2e/t Fe (adjusted for Fe content in ore)
A111: Fossil Diesel | E111: =F111*'Assumptions - Today''s Grid'!C30 -> 1.580645161 | F111: =CONVERT(0.028*1000000,"BTU","GJ")/'Assumptions - Today''s Grid'!$B$14 -> 0.04764768367 | G111: GJ/t Fe (adjusted for Fe content in ore) | H111: =F111*('Assumptions - Today''s Grid'!$F$30+'Assumptions - Today''s Grid'!$I$30) -> 0.004383586897 | I111: t CO2e/t Fe (adjusted for Fe content in ore)
A112: Fossil Gasoline | E112: =F112*'Assumptions - Today''s Grid'!C31 -> 0.09677419355 | F112: =CONVERT(0.002*1000000,"BTU","GJ")/'Assumptions - Today''s Grid'!$B$14 -> 0.003403405976 | G112: GJ/t Fe (adjusted for Fe content in ore) | H112: =F112*('Assumptions - Today''s Grid'!$F$31+'Assumptions - Today''s Grid'!$I$31) -> 0.0003097099438 | I112: t CO2e/t Fe (adjusted for Fe content in ore)
A114: Extraction + Beneficiation (US Taconite)
A115: Natural Gas | E115: =F115*'Assumptions - Today''s Grid'!C23 -> 0.08744302907 | F115: =CONVERT(0.008*1000000,"BTU","GJ")/'Assumptions - Today''s Grid'!$B$15 -> 0.03376178728 | G115: GJ/t Fe (adjusted for Fe content in ore) | H115: =F115*('Assumptions - Today''s Grid'!$F$23+'Assumptions - Today''s Grid'!$I$23) -> 0.002633419408 | I115: t CO2e/t Fe (adjusted for Fe content in ore)
A116: Electricity | E116: =F116*'Assumptions - Today''s Grid'!C26 -> 6.482737258 | F116: =CONVERT(0.079*1000000,"BTU","GJ")/'Assumptions - Today''s Grid'!$B$15 -> 0.3333976494 | G116: GJ/t Fe (adjusted for Fe content in ore) | H116: =F116*('Assumptions - Today''s Grid'!$F$26+'Assumptions - Today''s Grid'!$I$26) -> 0.03584024731 | I116: t CO2e/t Fe (adjusted for Fe content in ore)
A117: Biomass | E117: =F117*'Assumptions - Today''s Grid'!C27 -> 0 | F117: 0 | G117: GJ/t Fe (adjusted for Fe content in ore) | H117: =F117*('Assumptions - Today''s Grid'!$F$17+'Assumptions - Today''s Grid'!$I$17) -> 0 | I117: t CO2e/t Fe (adjusted for Fe content in ore)
A118: Fossil SMR Hydrogen | E118: =F118*'Assumptions - Today''s Grid'!C28 -> 0 | F118: 0 | G118: GJ/t Fe (adjusted for Fe content in ore) | H118: =F118*('Assumptions - Today''s Grid'!$F$27+'Assumptions - Today''s Grid'!$I$27) -> 0 | I118: t CO2e/t Fe (adjusted for Fe content in ore)
A119: Fossil SMR+CCS Hydrogen | E119: =F119*'Assumptions - Today''s Grid'!C29 -> 0 | F119: 0 | G119: GJ/t Fe (adjusted for Fe content in ore) | H119: =F119*('Assumptions - Today''s Grid'!$F$28+'Assumptions - Today''s Grid'!$I$28) -> 0 | I119: t CO2e/t Fe (adjusted for Fe content in ore)
A120: Electrolysis Hydrogen (US) | E120: =F120*'Assumptions - Today''s Grid'!C30 -> 0 | F120: 0 | G120: GJ/t Fe (adjusted for Fe content in ore) | H120: =F120*('Assumptions - Today''s Grid'!$F$29+'Assumptions - Today''s Grid'!$I$29) -> 0 | I120: t CO2e/t Fe (adjusted for Fe content in ore)
A121: Fossil Diesel | E121: =F121*'Assumptions - Today''s Grid'!C31 -> 3.36 | F121: =CONVERT(0.028*1000000,"BTU","GJ")/'Assumptions - Today''s Grid'!$B$15 -> 0.1181662555 | G121: GJ/t Fe (adjusted for Fe content in ore) | H121: =F121*('Assumptions - Today''s Grid'!$F$30+'Assumptions - Today''s Grid'!$I$30) -> 0.01087129551 | I121: t CO2e/t Fe (adjusted for Fe content in ore)
A122: Fossil Gasoline | E122: =F122*'Assumptions - Today''s Grid'!C32 -> 0 | F122: =CONVERT(0.002*1000000,"BTU","GJ")/'Assumptions - Today''s Grid'!$B$15 -> 0.008440446821 | G122: GJ/t Fe (adjusted for Fe content in ore) | H122: =F122*('Assumptions - Today''s Grid'!$F$31+'Assumptions - Today''s Grid'!$I$31) -> 0.0007680806607 | I122: t CO2e/t Fe (adjusted for Fe content in ore)

Sheet Assumptions - Low-C Elec
A1: Assumptions
A2: Instructions: Standard assumptions are provided below; do not change them. To add alternate assumptions, feel free to insert as many rows as needed per section (see 'Alternate inputs (applicant-added) green rows).
A3: Input Variable | C3: Value | D3: Cost Units | F3: Value | G3: Non-biogenic Embodied Emissions Unit | I3: Value | J3: Non-biogenic Process Emissions (i.e. chemical or combustion) | K3: Cost Reference | L3: Emissions Reference | M3: Justification for Changes
A5: Operational Assumptions
A6: Equipment availability | C6: 95 | D6: % | K6: IEA Iron & Steel Roadmap, Oct. 2020 (IEA, 2020) Fig 1.3 | L6: n/a
A7: Equipment lifetime | C7: 25 | D7: years | K7: IEA, 2020 Fig 1.3 | L7: n/a
A8: Cost of capital | C8: 8 | D8: % | K8: IEA, 2020 Fig 1.3 | L8: n/a
A9: Capital recovery factor (CRF) | C9: =(C8/100*(1+C8/100)^C7)/((1+C8/100)^C7-1) -> 0.09367877905 | K9: Calculated from above | L9: n/a
A10: Carbon capture rate | C10: 90 | D10: % | K10: climate.mit.edu/ask-mit/how-efficient-carbon-capture-and-storage | L10: n/a
A11: On-site Hydrogen Electrolyzer Energy Consumpition | C11: 52 | D11: kWh/kg H2
A13: Feedstock Assumptions | B13: %Fe
A14: Iron ore fines (imported) | B14: 0.62 | C14: 106 | D14: $/tonne Fe | F14: ='Assumptions - Today''s Grid'!F14 -> 0.02020687213 | G14: t CO2e/t Fe | I14: 0 | J14: t CO2e/t Fe | K14: USGS Mineral Yearbook 2021 | L14: GREET2 2022 Iron Ore Extraction & Processing on Steel Sheet
A15: Iron ore fines (US - Taconite) | B15: 0.25 | C15: 114 | D15: $/tonne Fe | F15: =SUM('Your Tech - Low-C Elec'!H117:H124) -> 0.02075552765 | G15: t CO2e/t Fe | I15: 0 | J15: t CO2e/t Fe | K15: Internal estimate | L15: ARPA-E estimations; assume fines on average see ~50% of beneficiation processes at mine, transported 400 miles by long haul truck and 400 miles by rail
A16: Scrap | B16: 0.98 | C16: 400 | D16: $/tonne Fe | F16: 0.2 | G16: t CO2e/t Fe | I16: 0 | J16: t CO2e/t Fe | K16: IEA, 2020 Fig 1.3 | L16: Ashby, Michael F. 'Materials and the Environment: Eco-informed Material Choice', Butterworth Heinemann, 2009. 2nd Edition 2012 ISBN 9780123859716
A17: Biomass | C17: 3.7 | D17: $/GJ | F17: 0.07 | G17: t CO2e/t dry biomass | I17: 0 | J17: t CO2e/t dry biomass | K17: Assume $60/dry ton from 2016 Billion Ton Study and ~18 MJ/kg | L17: GREET2020: poplar combined feedstock emissions
A18: Biocharcoal | C18: 300 | D18: tonne | F18: =AVERAGE((19.38+0.67+18.39+1.34),(21.76+12.03+1.34+1.34))/1000+0.0308 -> 0.068925 | G18: t CO2e/t biocharcoal | I18: 0 | J18: t CO2e / t biocharcoal | L18: Page 24 and Appendices 5 and 6 of "Life Cycle Assessment and Carbon Footprint for the Production of Biochar as an Alternative of Soil Remediation," Alfonso R. Rodriguez, 2013
A19: Electrolysis Hydrogen | C19: 2 | D19: $/kg H2 | F19: =C11*F26/1000 -> 3.64 | G19: kg CO2/kg H2 | I19: 0 | J19: t CO2e/t H2 | K19: Internal projection | L19: Electrolysis H2 embodied emissions from grid intensity assumption. Assume 52 kWh/kg H2 for electrolysis, purification, separation, compression, conveyance.
A20: Lime | C20: 140 | D20: $/tonne lime | F20: 0.011 | G20: t CO2e/t lime | I20: 0 | J20: t CO2e/t lime | K20: Assume quicklime https://pubs.usgs.gov/periodicals/mcs2022/mcs2022-lime.pdf | L20: All emissions are embedded for the material
A21: Alternate Inputs (user-added) start here
A23: Fuel Assumptions
A24: Natural gas | C24: 2.59 | D24: $/GJ | F24: 0.011 | G24: t CO2e/GJ LHV | I24: 0.067 | J24: t CO2e/GJ LHV | K24: Internal projection for 2050 | L24: Natural gas process emissions if fully combusted; GREET2020
A25: Coke | C25: 2.39 | D25: $/GJ | F25: 0.006 | G25: t CO2e/GJ | I25: 0.11 | J25: t CO2e/GJ | K25: Internal estimate | L25: Coke/coal process emissions if fully combusted; Coal to coking plants GREET2020. Use combustion emissions only if not using blast furnace/coke oven gas downstream.
A26: Electricity | C26: 0.03 | D26: $/kWh | F26: 70 | G26: g CO2e/kWh | I26: 0 | J26: g CO2e/kWh | K26: Internal renewable mix of PV solar and wind (approximately 90%) and 10% NGCC. Cis of each taken from GREET1 2022. | L26: Assume ~90% reduction from 2020 national average grid using solar and wind
A27: Electricity | C27: =C26*277.778 -> 8.33334 | D27: $/GJ | F27: =F26/1000000/0.0036 -> 0.01944444444 | G27: t CO2e/GJ | I27: 0 | J27: t CO2e/GJ | K27: Equivalent values to row 25; given here in alternate units | L27: Assume ~90% reduction from 2020 national average grid using solar and wind
A28: Fossil SMR Hydrogen (US) | C28: 16.7 | D28: $/GJ | F28: 0.095 | G28: t CO2e/GJ | I28: 0 | J28: t CO2e/GJ | L28: GREET 2022 plus leakage rate for Iron & Steel from (REF) and indirect GWP of H2 gas from (REFs)
A29: Fossil SMR+CCS Hydrogen (US) | C29: 25 | D29: $/GJ | F29: 0.045 | G29: t CO2e/GJ | I29: 0 | J29: t CO2e/GJ | L29: GREET 2022 plus leakage rate for Iron & Steel from (REF) and indirect GWP of H2 gas from (REFs)
A30: Electrolysis Hydrogen (US) | C30: =C19/120*1000 -> 16.66666667 | D30: $/GJ | F30: =C11*F26/120/1000 -> 0.03033333333 | G30: t CO2e/GJ | I30: 0 | J30: t CO2e/GJ | K30: Assume 120 MJ/kg LHV
A31: Fossil Diesel | C31: =35*CONVERT(1,"GJ","BTU")/1000000 -> 33.17359921 | D31: $/GJ | F31: 0.016 | G31: t CO2e/GJ | I31: 0.076 | J31: t CO2e/GJ | L31: GREET 2022 conventional fossil diesel
A32: Fossil Gasoline | C32: =30*CONVERT(1,"GJ","BTU")/1000000 -> 28.43451361 | D32: $/GJ | F32: 0.018 | G32: t CO2e/GJ | I32: 0.073 | J32: t CO2e/GJ
A33: Alternate Inputs (user-added) start here
A35: Transportation Assumptions | L35: Note: all emissions associated with construction, maintenance, and dispoal of transport vehicles as well as production of the fuels are all aggregated into the numbers in column I
A36: Shipping solids worldwide (ocean) | C36: 0.02 | D36: $/tonne-mile | F36: 0 | G36: tonne CO2e/tonne-mile freight | I36: =6.95/1000000 -> 6.95e-06 | J36: tonne CO2e/tonne-mile freight | K36: https://www.steelonthenet.com/freight.html | L36: GREET2020; Sea transit HFO (0.5% S fuel).
A37: Rail | C37: 0.03 | D37: $/tonne-mile | F37: 0 | G37: tonne CO2e/tonne-mile freight | I37: =41.3/1000000 -> 4.13e-05 | J37: tonne CO2e/tonne-mile freight | K37: Trains Magazine, https://cs.trains.com/trn/f/111/p/187338/2048866.aspx#:~:text=The%20average%20rate%20per%20ton-mile%20%28one%20ton%20of,year%202009%2C%20the%20average%20rate%20was%203.011%20cents. | L37: GREET 2020; diesel rail
A38: Truck | C38: 0.06 | D38: $/tonne-mile | F38: 0 | G38: tonne CO2e/tonne-mile freight | I38: =114.5/1000000 -> 0.0001145 | J38: tonne CO2e/tonne-mile freight | K38: Internal estimate | L38: GREET 2020; long haul diesel trucking (assumed payload of 19.1 U.S. short tons)
A39: Alternate Inputs (user-added) start here
A42: BF-BOF Assumptions
A43: BF-BOF (tot upfront cost) | C43: 600 | D43: $/t crude steel
A44: BF-BOF (annualized) | C44: =C43*C9/(C6*0.01) -> 59.16554466 | D44: $/t crude steel
A47: EAF Assumptions
A48: Electric arc furnace (tot upfront cost) | C48: 310 | D48: $/tonne HRC
A49: Electric arc furnace (annualized) | C49: =C48*C9/(C6*0.01) -> 30.56886474 | D49: $/tonne HRC | L49: Internal calcs; assumes state-of-art NG and solid carbon fuels inserted

Sheet Your Tech - Today's Grid
A1: Your Tech, Standard Case (user to fill in using values from Standard Assumptions in Assumptions tab as needed)
A2: Input Variable | D2: Value | E2: Cost Units | F2: Value | G2: Amount/t crude steel | H2: Value | I2: Embedded emissions | K2: Value | L2: Process emissions | M2: Justification for Changes
A4: Capital Equipment, Ironmaking
A5: Capital Equipment (tot upfront cost) | D5: 500 | E5: $/t crude steel
A6: Cap Equip Annualized | D6: =D5*100*'Assumptions - Today''s Grid'!C9/'Assumptions - Today''s Grid'!C6 -> 49.30462055 | E6: $/t crude steel
A8: On-Site Operations
A9: Ironmaking | D9: =0.085*D5 -> 42.5 | E9: $/t HRC
A10: Sintering | D10: =D70+SUM(E71:E77) -> 7.92010026 | E10: $/t HRC | K10: =SUM(H71:H77) -> 0.1523453174 | L10: t CO2e/t HRC steel | XFD10: BF + BOF
A11: Hot Rolling | D11: =D62+SUM(E63:E68) -> 21.16408853 | E11: $/t HRC | K11: =SUM(H63:H68) -> 0.1316920715 | L11: t CO2e/t HRC steel | XFD11: Sintering
A12: Stamping | D12: =D79+SUM(E80:E85) -> 19.64289254 | E12: $/t HRC | K12: =SUM(H80:H85) -> 0.09753991357 | L12: t CO2e/t HRC steel | XFD12: Hot Rolling
A13: Skin Mill | D13: =D87+SUM(E88:E93) -> 1.861629636 | E13: $/t HRC | K13: =SUM(H88:H93) -> 0.004763577175 | L13: t CO2e/t HRC steel | XFD13: Stamping
XFD14: Skin Mill
A16: Transportation | B16: Distance (mi)
A17: Water | B17: 0 | D17: =B17*'Assumptions - Today''s Grid'!$C$34*F17 -> 0 | E17: $/t HRC steel | F17: 0 | G17: t ore/t HRC steel | H17: 0 | I17: t CO2e/t HRC steel | K17: =F17*'Assumptions - Today''s Grid'!$I$34*B17 -> 0 | L17: t CO2e/t HRC steel
A18: Rail | B18: 700 | D18: =B18*'Assumptions - Today''s Grid'!$C$35*F18 -> 63 | E18: $/t HRC steel | F18: 3 | G18: t ore/t HRC steel | H18: 0 | I18: t CO2e/t HRC steel | K18: =F18*'Assumptions - Today''s Grid'!$I$35*B18 -> 0.08673 | L18: t CO2e/t HRC steel
A19: Truck | B19: 100 | D19: =B19*'Assumptions - Today''s Grid'!$C$36*F19 -> 18 | E19: $/t HRC steel | F19: 3 | G19: t ore/t HRC steel | H19: 0 | I19: t CO2e/t HRC steel | K19: =F19*'Assumptions - Today''s Grid'!$I$36*B19 -> 0.03435 | L19: t CO2e/t HRC steel
A22: Energy Inputs to Ironmaking Step ONLY (New Tech)
A23: Natural gas | D23: =F23*'Assumptions - Today''s Grid'!C23 -> 0 | E23: $/t HRC steel | F23: 0 | G23: GJ/t HRC steel | H23: =F23*'Assumptions - Today''s Grid'!F23 -> 0 | I23: t CO2e/t HRC steel | K23: =F23*'Assumptions - Today''s Grid'!I23 -> 0 | L23: t CO2e/t HRC steel
A24: Coke | D24: =F24*'Assumptions - Today''s Grid'!C24 -> 0 | E24: $/t HRC steel | F24: 0 | G24: GJ/t HRC steel | H24: =F24*'Assumptions - Today''s Grid'!F24 -> 0 | I24: t CO2e/t HRC steel | K24: =F24*'Assumptions - Today''s Grid'!I24 -> 0 | L24: t CO2e/t HRC steel
A25: Electricity | D25: =F25*'Assumptions - Today''s Grid'!C26 -> 196.0001568 | E25: $/t HRC steel | F25: =CONVERT(2800,"kWh","GJ") -> 10.08 | G25: GJ/t HRC steel | H25: =F25*'Assumptions - Today''s Grid'!F26 -> 1.0836 | I25: t CO2e/t HRC steel | K25: =F25*'Assumptions - Today''s Grid'!I26 -> 0 | L25: t CO2e/t HRC steel
A26: Fossil SMR Hydrogen (US) | D26: =F26*'Assumptions - Today''s Grid'!C27 -> 0 | E26: $/t HRC steel | F26: 0 | G26: GJ/t HRC steel | H26: =F26*'Assumptions - Today''s Grid'!F27 -> 0 | I26: t CO2e/t HRC steel | K26: =F26*'Assumptions - Today''s Grid'!I27 -> 0 | L26: t CO2e/t HRC steel
A27: Fossil SMR+CCS Hydrogen (US) | D27: =F27*'Assumptions - Today''s Grid'!C28 -> 0 | E27: $/t HRC steel | F27: 0 | G27: GJ/t HRC steel | H27: =F27*'Assumptions - Today''s Grid'!F28 -> 0 | I27: t CO2e/t HRC steel | K27: =F27*'Assumptions - Today''s Grid'!I28 -> 0 | L27: t CO2e/t HRC steel
A28: Electrolysis Hydrogen (US) | D28: =F28*'Assumptions - Today''s Grid'!C29 -> 0 | E28: $/t HRC steel | F28: 0 | G28: GJ/t HRC steel | H28: =F28*'Assumptions - Today''s Grid'!F29 -> 0 | I28: t CO2e/t HRC steel | K28: =F28*'Assumptions - Today''s Grid'!I29 -> 0 | L28: t CO2e/t HRC steel
A29: Fossil Diesel | D29: =F29*'Assumptions - Today''s Grid'!C30 -> 0 | E29: $/t HRC steel | F29: 0 | G29: GJ/t HRC steel | H29: =F29*'Assumptions - Today''s Grid'!F30 -> 0 | I29: t CO2e/t HRC steel | K29: =F29*'Assumptions - Today''s Grid'!I30 -> 0 | L29: t CO2e/t HRC steel
A30: Fossil Gasoline | D30: =F30*'Assumptions - Today''s Grid'!C31 -> 0 | E30: $/t HRC steel | F30: 0 | G30: GJ/t HRC steel | H30: =F30*'Assumptions - Today''s Grid'!F31 -> 0 | I30: t CO2e/t HRC steel | K30: =F30*'Assumptions - Today''s Grid'!I31 -> 0 | L30: t CO2e/t HRC steel
A31: Alternate Inputs (user-added) start here | D31: =F31*'Assumptions - Today''s Grid'!C32 -> 0 | E31: $/t HRC steel | F31: 0 | G31: GJ/t HRC steel | H31: =F31*'Assumptions - Today''s Grid'!F32 -> 0 | I31: t CO2e/t HRC steel | K31: =F31*'Assumptions - Today''s Grid'!I32 -> 0 | L31: t CO2e/t HRC steel
A34: Feedstocks to Ironmaking Step ONLY (New Tech)
A35: Iron ore fines (imported) | D35: =F35*'Assumptions - Today''s Grid'!C14 -> 0 | E35: $/t HRC steel | F35: 0 | G35: t Fe/t HRC steel | H35: =F35*SUM(H107:H114) -> 0 | I35: t CO2e/t HRC steel | K35: ='Assumptions - Today''s Grid'!I14*F35 -> 0 | L35: t CO2e/t HRC steel
A36: Iron ore fines (US - Taconite) | D36: =F36*'Assumptions - Today''s Grid'!C15 -> 342 | E36: $/t HRC steel | F36: =0.75*(1/('Assumptions - Today''s Grid'!B15)) -> 3 | G36: t Fe/t HRC steel | H36: =F36*SUM(H117:H124) -> 0.1503391287 | I36: t CO2e/t HRC steel | K36: ='Assumptions - Today''s Grid'!I15*F36 -> 0 | L36: t CO2e/t HRC steel
A37: Biomass | D37: =F37*'Assumptions - Today''s Grid'!C17 -> 0 | E37: $/t HRC steel | F37: 0 | G37: t biomass/t HRC steel | H37: ='Assumptions - Today''s Grid'!F17*F37 -> 0 | I37: t CO2e/t HRC steel | K37: ='Assumptions - Today''s Grid'!I17*F37 -> 0 | L37: t CO2e/t HRC steel
A38: Biocharcoal | D38: =F38*'Assumptions - Today''s Grid'!C18 -> 0 | E38: $/t HRC steel | F38: 0 | G38: t biocharcoal/t HRC steel | H38: ='Assumptions - Today''s Grid'!F18*F38 -> 0 | I38: t CO2e/t HRC steel | K38: ='Assumptions - Today''s Grid'!I18*F38 -> 0 | L38: t CO2e/t HRC steel
A39: Electrolysis Hydrogen | D39: =F39*'Assumptions - Today''s Grid'!C19 -> 0 | E39: $/t HRC steel | F39: 0 | G39: t H2/t HRC steel | H39: ='Assumptions - Today''s Grid'!F19*F39 -> 0 | I39: t CO2e/t HRC steel | K39: ='Assumptions - Today''s Grid'!I19*F39 -> 0 | L39: t CO2e/t HRC steel
A40: Lime | D40: =F40*'Assumptions - Today''s Grid'!C20 -> 10.5 | E40: $/t HRC steel | F40: =150/2000 -> 0.075 | G40: t lime/t HRC steel | H40: ='Assumptions - Today''s Grid'!F20*F40 -> 0.000825 | I40: t CO2e/t HRC steel | K40: ='Assumptions - Today''s Grid'!I20*F40 -> 0 | L40: t CO2e/t HRC steel
A41: Alternate Inputs (user-added) start here | D41: =F41*'Assumptions - Today''s Grid'!C21 -> 0 | E41: $/t HRC steel | F41: 0 | G41: t/t HRC steel | H41: ='Assumptions - Today''s Grid'!F21*F41 -> 0 | I41: t CO2e/t HRC steel | K41: ='Assumptions - Today''s Grid'!I21*F41 -> 0 | L41: t CO2e/t HRC steel
A43: Energy Inputs to Steelmaking Step ONLY (EAF)
A44: Natural Gas | D44: =F44*'Assumptions - Today''s Grid'!C23 -> 1.281586895 | E44: $/t HRC steel | F44: =F96 -> 0.4948211949 | G44: GJ/t HRC | H44: =F44*('Assumptions - Today''s Grid'!F23) -> 0.005443033144 | I44: t CO2e/t HRC | K44: =F44*('Assumptions - Today''s Grid'!I23) -> 0.03315302006 | L44: t CO2e/t HRC steel
A45: Coke | D45: =F45*'Assumptions - Today''s Grid'!C24 -> 0.4286691929 | E45: $/t HRC steel | F45: =F102 -> 0.1793594949 | G45: GJ/t HRC | H45: =F45*('Assumptions - Today''s Grid'!F24) -> 0.00107615697 | I45: t CO2e/t HRC | K45: =F45*('Assumptions - Today''s Grid'!I24) -> 0.01972954444 | L45: t CO2e/t HRC steel
A46: Electricity | D46: =F46*'Assumptions - Today''s Grid'!C26 -> 31.38793673 | E46: $/t HRC steel | F46: =F97 -> 1.614235455 | G46: GJ/t HRC | H46: =F46*('Assumptions - Today''s Grid'!F26) -> 0.1735303114 | I46: t CO2e/t HRC | K46: =F46*('Assumptions - Today''s Grid'!I26) -> 0 | L46: t CO2e/t HRC steel
A47: Fossil SMR Hydrogen | D47: =F47*'Assumptions - Today''s Grid'!C27 -> 0 | E47: $/t HRC steel | F47: 0 | G47: GJ/t HRC | H47: =F47*('Assumptions - Today''s Grid'!F27) -> 0 | I47: t CO2e/t HRC | K47: =F47*('Assumptions - Today''s Grid'!I27) -> 0 | L47: t CO2e/t HRC steel
A48: Fossil SMR+CCS Hydrogen | D48: =F48*'Assumptions - Today''s Grid'!C28 -> 0 | E48: $/t HRC steel | F48: 0 | G48: GJ/t HRC | H48: =F48*('Assumptions - Today''s Grid'!F28) -> 0 | I48: t CO2e/t HRC | K48: =F48*('Assumptions - Today''s Grid'!I28) -> 0 | L48: t CO2e/t HRC steel
A49: Electrolysis Hydrogen (US) | D49: =F49*'Assumptions - Today''s Grid'!C29 -> 0 | E49: $/t HRC steel | F49: 0 | G49: GJ/t HRC | H49: =F49*('Assumptions - Today''s Grid'!F29) -> 0 | I49: t CO2e/t HRC | K49: =F49*('Assumptions - Today''s Grid'!I29) -> 0 | L49: t CO2e/t HRC steel
A51: Additional Feedstocks to Steelmaking Step ONLY (EAF)
A52: Iron ore fines (imported) | D52: =F52*'Assumptions - Today''s Grid'!C14 -> 0 | E52: $/t HRC steel | F52: 0 | G52: t Fe/t HRC steel | H52: =F52*SUM(H107:H114) -> 0 | I52: t CO2e/t HRC steel | K52: ='Assumptions - Today''s Grid'!I13*F52 -> 0 | L52: t CO2e/t HRC steel
A53: Iron ore fines (US - Taconite) | D53: =F53*'Assumptions - Today''s Grid'!C15 -> 0 | E53: $/t HRC steel | F53: 0 | G53: t Fe/t HRC steel | H53: =F53*SUM(H117:H124) -> 0 | I53: t CO2e/t HRC steel | K53: ='Assumptions - Today''s Grid'!I14*F53 -> 0 | L53: t CO2e/t HRC steel
A54: Scrap | D54: =F54*'Assumptions - Today''s Grid'!C16 -> 101.6 | E54: $/t HRC steel | F54: =F103 -> 0.254 | G54: t scrap/t HRC steel | H54: =F54*'Assumptions - Today''s Grid'!F16 -> 0.0508 | I54: t CO2e/t HRC steel | K54: ='Assumptions - Today''s Grid'!I15*F54 -> 0 | L54: t CO2e/t HRC steel
A55: Biomass | D55: =F55*'Assumptions - Today''s Grid'!C17 -> 0 | E55: $/t HRC steel | F55: 0 | G55: t biomass/t HRC steel | H55: ='Assumptions - Today''s Grid'!F16*F55 -> 0 | I55: t CO2e/t HRC steel | K55: ='Assumptions - Today''s Grid'!I16*F55 -> 0 | L55: t CO2e/t HRC steel
A56: Biocharcoal | D56: =F56*'Assumptions - Today''s Grid'!C18 -> 0 | E56: $/t HRC steel | F56: 0 | G56: t biocharcoal/t HRC steel | H56: ='Assumptions - Today''s Grid'!F17*F56 -> 0 | I56: t CO2e/t HRC steel | K56: ='Assumptions - Today''s Grid'!I17*F56 -> 0 | L56: t CO2e/t HRC steel
A57: Electrolysis Hydrogen | D57: =F57*'Assumptions - Today''s Grid'!C19 -> 0 | E57: $/t HRC steel | F57: 0 | G57: t H2/t HRC steel | H57: ='Assumptions - Today''s Grid'!F18*F57 -> 0 | I57: t CO2e/t HRC steel | K57: ='Assumptions - Today''s Grid'!I18*F57 -> 0 | L57: t CO2e/t HRC steel
A58: Lime | D58: =F58*'Assumptions - Today''s Grid'!C20 -> 0 | E58: $/t HRC steel | F58: 0 | G58: t lime/t HRC steel | H58: ='Assumptions - Today''s Grid'!F19*F58 -> 0 | I58: t CO2e/t HRC steel | K58: ='Assumptions - Today''s Grid'!I19*F58 -> 0 | L58: t CO2e/t HRC steel
A59: Alternate Inputs (user-added) start here | D59: =F59*'Assumptions - Today''s Grid'!C21 -> 0 | E59: $/t HRC steel | F59: 0 | G59: t/t HRC steel | H59: ='Assumptions - Today''s Grid'!F20*F59 -> 0 | I59: t CO2e/t HRC steel | K59: ='Assumptions - Today''s Grid'!I20*F59 -> 0 | L59: t CO2e/t HRC steel
A61: Life Cycle Stages | F61: Energy Input | G61: Unit
A62: Hot Rolling | D62: 5 | E62: $/t HRC
A63: Natural Gas | E63: =F63*'Assumptions - Today''s Grid'!C23 -> 1.721534635 | F63: =CONVERT(0.63*1000000,"BTU","GJ") -> 0.6646851872 | G63: GJ/t HRC | H63: =F63*('Assumptions - Today''s Grid'!$F$23+'Assumptions - Today''s Grid'!$I$23) -> 0.0518454446 | I63: t CO2e/t HRC | J63: Base value from GREET2 2022
A64: Electricity | E64: =F64*'Assumptions - Today''s Grid'!C26 -> 14.44255389 | F64: =CONVERT(1000000*0.704,"BTU","GJ") -> 0.7427593202 | G64: GJ/t HRC | H64: =F64*('Assumptions - Today''s Grid'!$F$26+'Assumptions - Today''s Grid'!$I$26) -> 0.07984662693 | I64: t CO2e/t HRC | J64: Base value from GREET2 2022
A65: Biomass | E65: =F65*'Assumptions - Today''s Grid'!C17 -> 0 | F65: 0 | G65: t/t HRC | H65: =F65*('Assumptions - Today''s Grid'!$F$17+'Assumptions - Today''s Grid'!$I$17) -> 0 | I65: t CO2e/t HRC | J65: Base value from GREET2 2022
A66: Fossil SMR Hydrogen | E66: =F66*'Assumptions - Today''s Grid'!C28 -> 0 | F66: 0 | G66: GJ/t HRC | H66: =F66*('Assumptions - Today''s Grid'!$F$27+'Assumptions - Today''s Grid'!$I$27) -> 0 | I66: t CO2e/t HRC
A67: Fossil SMR+CCS Hydrogen | E67: =F67*'Assumptions - Today''s Grid'!C29 -> 0 | F67: 0 | G67: GJ/t HRC | H67: =F67*('Assumptions - Today''s Grid'!$F$28+'Assumptions - Today''s Grid'!$I$28) -> 0 | I67: t CO2e/t HRC
A68: Electrolysis Hydrogen (US) | E68: =F68*'Assumptions - Today''s Grid'!C30 -> 0 | F68: 0 | G68: GJ/t HRC | H68: =F68*('Assumptions - Today''s Grid'!$F$29+'Assumptions - Today''s Grid'!$I$29) -> 0 | I68: t CO2e/t HRC
A70: Sintering | D70: 2 | E70: $/t HRC
A71: Natural Gas | E71: =F71*'Assumptions - Today''s Grid'!C23 -> 0 | F71: 0 | G71: GJ/t HRC | H71: =F71*('Assumptions - Today''s Grid'!$F$23+'Assumptions - Today''s Grid'!$I$23) -> 0 | I71: t CO2e/t HRC | J71: Base value from GREET2 2022
A72: Electricity | E72: =F72*'Assumptions - Today''s Grid'!C26 -> 3.138793673 | F72: =CONVERT(1000000*0.153,"BTU","GJ") -> 0.1614235455 | G72: GJ/t HRC | H72: =F72*('Assumptions - Today''s Grid'!$F$26+'Assumptions - Today''s Grid'!$I$26) -> 0.01735303114 | I72: t CO2e/t HRC | J72: Base value from GREET2 2022
A73: Biomass | E73: =F73*'Assumptions - Today''s Grid'!C17 -> 0 | F73: 0 | G73: GJ/t HRC | H73: =F73*('Assumptions - Today''s Grid'!$F$17+'Assumptions - Today''s Grid'!$I$17) -> 0 | I73: t CO2e/t HRC | J73: Base value from GREET2 2022
A74: Fossil SMR Hydrogen | E74: =F74*'Assumptions - Today''s Grid'!C28 -> 0 | F74: 0 | G74: GJ/t HRC | H74: =F74*('Assumptions - Today''s Grid'!$F$27+'Assumptions - Today''s Grid'!$I$27) -> 0 | I74: t CO2e/t HRC
A75: Fossil SMR+CCS Hydrogen | E75: =F75*'Assumptions - Today''s Grid'!C29 -> 0 | F75: 0 | G75: GJ/t HRC | H75: =F75*('Assumptions - Today''s Grid'!$F$28+'Assumptions - Today''s Grid'!$I$28) -> 0 | I75: t CO2e/t HRC
A76: Electrolysis Hydrogen (US) | E76: =F76*'Assumptions - Today''s Grid'!C30 -> 0 | F76: 0 | G76: GJ/t HRC | H76: =F76*('Assumptions - Today''s Grid'!$F$29+'Assumptions - Today''s Grid'!$I$29) -> 0 | I76: t CO2e/t HRC
A77: Coke | E77: =F77*'Assumptions - Today''s Grid'!C24 -> 2.781306587 | F77: =CONVERT(1.103*1000000,"BTU","GJ") -> 1.163726605 | G77: GJ/t HRC | H77: =F77*('Assumptions - Today''s Grid'!$F$24+'Assumptions - Today''s Grid'!$I$24) -> 0.1349922862 | I77: t CO2e/t HRC
A79: Stamping | D79: 2 | E79: $/t HRC
A80: Natural Gas | E80: =F80*'Assumptions - Today''s Grid'!C23 -> 0 | F80: 0 | G80: GJ/t HRC | H80: =F80*('Assumptions - Today''s Grid'!$F$23+'Assumptions - Today''s Grid'!$I$23) -> 0 | I80: t CO2e/t HRC | J80: Base value from GREET2 2022
A81: Electricity | E81: =F81*'Assumptions - Today''s Grid'!C26 -> 17.64289254 | F81: =CONVERT(1000000*0.86,"BTU","GJ") -> 0.9073480333 | G81: GJ/t HRC | H81: =F81*('Assumptions - Today''s Grid'!$F$26+'Assumptions - Today''s Grid'!$I$26) -> 0.09753991357 | I81: t CO2e/t HRC | J81: Base value from GREET2 2022
A82: Biomass | E82: =F82*'Assumptions - Today''s Grid'!C17 -> 0 | F82: 0 | G82: GJ/t HRC | H82: =F82*('Assumptions - Today''s Grid'!$F$17+'Assumptions - Today''s Grid'!$I$17) -> 0 | I82: t CO2e/t HRC | J82: Base value from GREET2 2022
A83: Fossil SMR Hydrogen | E83: =F83*'Assumptions - Today''s Grid'!C27 -> 0 | F83: 0 | G83: GJ/t HRC | H83: =F83*('Assumptions - Today''s Grid'!$F$27+'Assumptions - Today''s Grid'!$I$27) -> 0 | I83: t CO2e/t HRC
A84: Fossil SMR+CCS Hydrogen | E84: =F84*'Assumptions - Today''s Grid'!C28 -> 0 | F84: 0 | G84: GJ/t HRC | H84: =F84*('Assumptions - Today''s Grid'!$F$28+'Assumptions - Today''s Grid'!$I$28) -> 0 | I84: t CO2e/t HRC
A85: Electrolysis Hydrogen (US) | E85: =F85*'Assumptions - Today''s Grid'!C29 -> 0 | F85: 0 | G85: GJ/t HRC | H85: =F85*('Assumptions - Today''s Grid'!$F$29+'Assumptions - Today''s Grid'!$I$29) -> 0 | I85: t CO2e/t HRC
A87: Skin Mill | D87: 1 | E87: $/t HRC
A88: Natural Gas | E88: =F88*'Assumptions - Today''s Grid'!C23 -> 0 | F88: 0 | G88: GJ/t HRC | H88: =F88*('Assumptions - Today''s Grid'!$F$23+'Assumptions - Today''s Grid'!$I$23) -> 0 | I88: t CO2e/t HRC | J88: Base value from GREET2 2022
A89: Electricity | E89: =F89*'Assumptions - Today''s Grid'!C26 -> 0.8616296356 | F89: =CONVERT(1000000*0.042,"BTU","GJ") -> 0.04431234581 | G89: GJ/t HRC | H89: =F89*('Assumptions - Today''s Grid'!$F$26+'Assumptions - Today''s Grid'!$I$26) -> 0.004763577175 | I89: t CO2e/t HRC | J89: Base value from GREET2 2022
A90: Biomass | E90: =F90*'Assumptions - Today''s Grid'!C17 -> 0 | F90: 0 | G90: GJ/t HRC | H90: =F90*('Assumptions - Today''s Grid'!$F$17+'Assumptions - Today''s Grid'!$I$17) -> 0 | I90: t CO2e/t HRC | J90: Base value from GREET2 2022
A91: Fossil SMR Hydrogen | E91: =F91*'Assumptions - Today''s Grid'!C27 -> 0 | F91: 0 | G91: GJ/t HRC | H91: =F91*('Assumptions - Today''s Grid'!$F$27+'Assumptions - Today''s Grid'!$I$27) -> 0 | I91: t CO2e/t HRC
A92: Fossil SMR+CCS Hydrogen | E92: =F92*'Assumptions - Today''s Grid'!C28 -> 0 | F92: 0 | G92: GJ/t HRC | H92: =F92*('Assumptions - Today''s Grid'!$F$28+'Assumptions - Today''s Grid'!$I$28) -> 0 | I92: t CO2e/t HRC
A93: Electrolysis Hydrogen (US) | E93: =F93*'Assumptions - Today''s Grid'!C29 -> 0 | F93: 0 | G93: GJ/t HRC | H93: =F93*'Assumptions - Today''s Grid'!$F$29+'Assumptions - Today''s Grid'!$I$29 -> 0 | I93: t CO2e/t HRC
A95: EAF | E95: $/t HRC
A96: Natural Gas | E96: =F96*'Assumptions - Today''s Grid'!C23 -> 1.281586895 | F96: 0.4948211949 | G96: GJ/t HRC | H96: =F96*('Assumptions - Today''s Grid'!$F$23+'Assumptions - Today''s Grid'!$I$23) -> 0.0385960532 | I96: t CO2e/t HRC | J96: Base value from GREET2 2022
A97: Electricity | E97: =F97*'Assumptions - Today''s Grid'!C26 -> 31.38793673 | F97: 1.614235455 | G97: GJ/t HRC | H97: =F97*('Assumptions - Today''s Grid'!$F$26+'Assumptions - Today''s Grid'!$I$26) -> 0.1735303114 | I97: t CO2e/t HRC | J97: Base value from GREET2 2022
A98: Biomass | E98: =F98*'Assumptions - Today''s Grid'!C17 -> 0 | F98: 0 | G98: GJ/t HRC | H98: =F98*('Assumptions - Today''s Grid'!$F$17+'Assumptions - Today''s Grid'!$I$17) -> 0 | I98: t CO2e/t HRC | J98: Base value from GREET2 2022
A99: Fossil SMR Hydrogen | E99: =F99*'Assumptions - Today''s Grid'!C27 -> 0 | F99: 0 | G99: GJ/t HRC | H99: =F99*('Assumptions - Today''s Grid'!$F$27+'Assumptions - Today''s Grid'!$I$27) -> 0 | I99: t CO2e/t HRC
A100: Fossil SMR+CCS Hydrogen | E100: =F100*'Assumptions - Today''s Grid'!C28 -> 0 | F100: 0 | G100: GJ/t HRC | H100: =F100*('Assumptions - Today''s Grid'!$F$28+'Assumptions - Today''s Grid'!$I$28) -> 0 | I100: t CO2e/t HRC
A101: Electrolysis Hydrogen (US) | E101: =F101*'Assumptions - Today''s Grid'!C29 -> 0 | F101: 0 | G101: GJ/t HRC | H101: =F101*('Assumptions - Today''s Grid'!$F$29+'Assumptions - Today''s Grid'!$I$29) -> 0 | I101: t CO2e/t HRC
A102: Coke | E102: =F102*'Assumptions - Today''s Grid'!C24 -> 0.4286691929 | F102: 0.1793594949 | G102: GJ/t HRC | H102: =F102*('Assumptions - Today''s Grid'!$F$24+'Assumptions - Today''s Grid'!$I$24) -> 0.02080570141 | I102: t CO2e/t HRC
A103: Scrap | E103: =F103*'Assumptions - Today''s Grid'!C16 -> 101.6 | F103: 0.254 | G103: t/t HRC | H103: =F103*('Assumptions - Today''s Grid'!$F$16+'Assumptions - Today''s Grid'!$I$16) -> 0.0508 | I103: t CO2e/t HRC
A104: Iron Ore | E104: =F104*'Assumptions - Today''s Grid'!C14 -> 0 | F104: 0 | G104: t/t HRC | H104: =F104*'Assumptions - Today''s Grid'!$F$15 -> 0 | I104: t CO2e/t HRC
A106: Extraction + Beneficiation (Imported high quality) | E106: $/t HRC
A107: Natural Gas | E107: =F107*'Assumptions - Today''s Grid'!C23 -> 0.03525928591 | F107: =CONVERT(0.008*1000000,"BTU","GJ")/'Assumptions - Today''s Grid'!$B$14 -> 0.0136136239 | G107: GJ/t Fe (adjusted for Fe content in ore) | H107: =F107*('Assumptions - Today''s Grid'!$F$23+'Assumptions - Today''s Grid'!$I$23) -> 0.001061862665 | I107: t CO2e/t Fe (adjusted for Fe content in ore)
A108: Electricity | E108: =F108*'Assumptions - Today''s Grid'!C26 -> 2.614006959 | F108: =CONVERT(0.079*1000000,"BTU","GJ")/'Assumptions - Today''s Grid'!$B$14 -> 0.1344345361 | G108: GJ/t Fe (adjusted for Fe content in ore) | H108: =F108*('Assumptions - Today''s Grid'!$F$26+'Assumptions - Today''s Grid'!$I$26) -> 0.01445171263 | I108: t CO2e/t Fe (adjusted for Fe content in ore)
A109: Biomass | E109: =F109*'Assumptions - Today''s Grid'!C17 -> 0 | F109: 0 | G109: GJ/t Fe (adjusted for Fe content in ore) | H109: =F109*('Assumptions - Today''s Grid'!$F$17+'Assumptions - Today''s Grid'!$I$17) -> 0 | I109: t CO2e/t Fe (adjusted for Fe content in ore)
A110: Fossil SMR Hydrogen | E110: =F110*'Assumptions - Today''s Grid'!C27 -> 0 | F110: 0 | G110: GJ/t Fe (adjusted for Fe content in ore) | H110: =F110*('Assumptions - Today''s Grid'!$F$27+'Assumptions - Today''s Grid'!$I$27) -> 0 | I110: t CO2e/t Fe (adjusted for Fe content in ore)
A111: Fossil SMR+CCS Hydrogen | E111: =F111*'Assumptions - Today''s Grid'!C28 -> 0 | F111: 0 | G111: GJ/t Fe (adjusted for Fe content in ore) | H111: =F111*('Assumptions - Today''s Grid'!$F$28+'Assumptions - Today''s Grid'!$I$28) -> 0 | I111: t CO2e/t Fe (adjusted for Fe content in ore)
A112: Electrolysis Hydrogen (US) | E112: =F112*'Assumptions - Today''s Grid'!C29 -> 0 | F112: 0 | G112: GJ/t Fe (adjusted for Fe content in ore) | H112: =F112*('Assumptions - Today''s Grid'!$F$29+'Assumptions - Today''s Grid'!$I$29) -> 0 | I112: t CO2e/t Fe (adjusted for Fe content in ore)
A113: Fossil Diesel | E113: =F113*'Assumptions - Today''s Grid'!C30 -> 1.580645161 | F113: =CONVERT(0.028*1000000,"BTU","GJ")/'Assumptions - Today''s Grid'!$B$14 -> 0.04764768367 | G113: GJ/t Fe (adjusted for Fe content in ore) | H113: =F113*('Assumptions - Today''s Grid'!$F$30+'Assumptions - Today''s Grid'!$I$30) -> 0.004383586897 | I113: t CO2e/t Fe (adjusted for Fe content in ore)
A114: Fossil Gasoline | E114: =F114*'Assumptions - Today''s Grid'!C31 -> 0.09677419355 | F114: =CONVERT(0.002*1000000,"BTU","GJ")/'Assumptions - Today''s Grid'!$B$14 -> 0.003403405976 | G114: GJ/t Fe (adjusted for Fe content in ore) | H114: =F114*('Assumptions - Today''s Grid'!$F$31+'Assumptions - Today''s Grid'!$I$31) -> 0.0003097099438 | I114: t CO2e/t Fe (adjusted for Fe content in ore)
A116: Extraction + Beneficiation (US Taconite) | E116: $/t HRC
A117: Natural Gas | E117: =F117*'Assumptions - Today''s Grid'!C23 -> 0.08744302907 | F117: =CONVERT(0.008*1000000,"BTU","GJ")/'Assumptions - Today''s Grid'!$B$15 -> 0.03376178728 | G117: GJ/t Fe (adjusted for Fe content in ore) | H117: =F117*('Assumptions - Today''s Grid'!$F$23+'Assumptions - Today''s Grid'!$I$23) -> 0.002633419408 | I117: t CO2e/t Fe (adjusted for Fe content in ore)
A118: Electricity | E118: =F118*'Assumptions - Today''s Grid'!C26 -> 6.482737258 | F118: =CONVERT(0.079*1000000,"BTU","GJ")/'Assumptions - Today''s Grid'!$B$15 -> 0.3333976494 | G118: GJ/t Fe (adjusted for Fe content in ore) | H118: =F118*('Assumptions - Today''s Grid'!$F$26+'Assumptions - Today''s Grid'!$I$26) -> 0.03584024731 | I118: t CO2e/t Fe (adjusted for Fe content in ore)
A119: Biomass | E119: =F119*'Assumptions - Today''s Grid'!C17 -> 0 | F119: 0 | G119: GJ/t Fe (adjusted for Fe content in ore) | H119: =F119*('Assumptions - Today''s Grid'!$F$17+'Assumptions - Today''s Grid'!$I$17) -> 0 | I119: t CO2e/t Fe (adjusted for Fe content in ore)
A120: Fossil SMR Hydrogen | E120: =F120*'Assumptions - Today''s Grid'!C27 -> 0 | F120: 0 | G120: GJ/t Fe (adjusted for Fe content in ore) | H120: =F120*('Assumptions - Today''s Grid'!$F$27+'Assumptions - Today''s Grid'!$I$27) -> 0 | I120: t CO2e/t Fe (adjusted for Fe content in ore)
A121: Fossil SMR+CCS Hydrogen | E121: =F121*'Assumptions - Today''s Grid'!C28 -> 0 | F121: 0 | G121: GJ/t Fe (adjusted for Fe content in ore) | H121: =F121*('Assumptions - Today''s Grid'!$F$28+'Assumptions - Today''s Grid'!$I$28) -> 0 | I121: t CO2e/t Fe (adjusted for Fe content in ore)
A122: Electrolysis Hydrogen (US) | E122: =F122*'Assumptions - Today''s Grid'!C29 -> 0 | F122: 0 | G122: GJ/t Fe (adjusted for Fe content in ore) | H122: =F122*('Assumptions - Today''s Grid'!$F$29+'Assumptions - Today''s Grid'!$I$29) -> 0 | I122: t CO2e/t Fe (adjusted for Fe content in ore)
A123: Fossil Diesel | E123: =F123*'Assumptions - Today''s Grid'!C30 -> 3.92 | F123: =CONVERT(0.028*1000000,"BTU","GJ")/'Assumptions - Today''s Grid'!$B$15 -> 0.1181662555 | G123: GJ/t Fe (adjusted for Fe content in ore) | H123: =F123*('Assumptions - Today''s Grid'!$F$30+'Assumptions - Today''s Grid'!$I$30) -> 0.01087129551 | I123: t CO2e/t Fe (adjusted for Fe content in ore)
A124: Fossil Gasoline | E124: =F124*'Assumptions - Today''s Grid'!C31 -> 0.24 | F124: =CONVERT(0.002*1000000,"BTU","GJ")/'Assumptions - Today''s Grid'!$B$15 -> 0.008440446821 | G124: GJ/t Fe (adjusted for Fe content in ore) | H124: =F124*('Assumptions - Today''s Grid'!$F$31+'Assumptions - Today''s Grid'!$I$31) -> 0.0007680806607 | I124: t CO2e/t Fe (adjusted for Fe content in ore)

Sheet Your Tech - Low-C Elec
A1: Your Tech, Standard Case (user to fill in using values from Standard Assumptions in Assumptions tab as needed)
A2: Input Variable | D2: Value | E2: Cost Units | F2: Value | G2: Amount/t crude steel | H2: Value | I2: Embedded emissions | K2: Value | L2: Process emissions | M2: Justification for Changes
A4: Capital Equipment, Ironmaking
A5: Capital Equipment (tot upfront cost) | D5: ='Your Tech - Today''s Grid'!D5 -> 500 | E5: $/t crude steel
A6: Cap Equip Annualized | D6: ='Your Tech - Today''s Grid'!D6 -> 49.30462055 | E6: $/t crude steel
A8: On-Site Operations
A9: Ironmaking | D9: =0.085*D5 -> 42.5 | E9: $/t HRC
A10: Sintering | D10: =D70 -> 2 | E10: $/t HRC | K10: =SUM(H71:H77) -> 0.1381310774 | L10: t CO2e/t HRC steel | XFD10: BF + BOF
A11: Hot Rolling | D11: =D62 -> 5 | E11: $/t HRC | K11: =SUM(H63:H68) -> 0.06628798694 | L11: t CO2e/t HRC steel | XFD11: Sintering
A12: Stamping | D12: =D79 -> 2 | E12: $/t HRC | K12: =SUM(H80:H85) -> 0.01764287842 | L12: t CO2e/t HRC steel | XFD12: Hot Rolling
A13: Skin Mill | D13: =D87 -> 1 | E13: $/t HRC | K13: =SUM(H88:H93) -> 0.0008616289463 | L13: t CO2e/t HRC steel | XFD13: Stamping
XFD14: Skin Mill
A16: Transportation of Ore | B16: Distance (mi)
A17: Water | B17: ='Your Tech - Today''s Grid'!B17 -> 0 | D17: =B17*'Assumptions - Low-C Elec'!$C$36*F17 -> 0 | E17: $/t HRC steel | F17: ='Your Tech - Today''s Grid'!F17 -> 0 | G17: t ore/t HRC steel | H17: 0 | I17: t CO2e/t HRC steel | K17: =F17*'Assumptions - Low-C Elec'!$I$36*B17 -> 0 | L17: t CO2e/t HRC steel
A18: Rail | B18: ='Your Tech - Today''s Grid'!B18 -> 700 | D18: =B18*'Assumptions - Low-C Elec'!$C$37*F18 -> 63 | E18: $/t HRC steel | F18: ='Your Tech - Today''s Grid'!F18 -> 3 | G18: t ore/t HRC steel | H18: 0 | I18: t CO2e/t HRC steel | K18: =F18*'Assumptions - Low-C Elec'!$I$37*B18 -> 0.08673 | L18: t CO2e/t HRC steel
A19: Truck | B19: ='Your Tech - Today''s Grid'!B19 -> 100 | D19: =B19*'Assumptions - Low-C Elec'!$C$38*F19 -> 18 | E19: $/t HRC steel | F19: ='Your Tech - Today''s Grid'!F19 -> 3 | G19: t ore/t HRC steel | H19: 0 | I19: t CO2e/t HRC steel | K19: =F19*'Assumptions - Low-C Elec'!$I$38*B19 -> 0.03435 | L19: t CO2e/t HRC steel
A22: Energy Inputs to Ironmaking Step ONLY (New Tech)
A23: Natural gas | D23: =F23*'Assumptions - Low-C Elec'!C24 -> 0 | E23: $/t HRC steel | F23: ='Your Tech - Today''s Grid'!F23 -> 0 | G23: GJ/t HRC steel | H23: =F23*'Assumptions - Low-C Elec'!F24 -> 0 | I23: t CO2e/t HRC steel | K23: =F23*'Assumptions - Low-C Elec'!I24 -> 0 | L23: t CO2e/t HRC steel
A24: Coke | D24: =F24*'Assumptions - Low-C Elec'!C25 -> 0 | E24: $/t HRC steel | F24: ='Your Tech - Today''s Grid'!F24 -> 0 | G24: GJ/t HRC steel | H24: =F24*'Assumptions - Low-C Elec'!F25 -> 0 | I24: t CO2e/t HRC steel | K24: =F24*'Assumptions - Low-C Elec'!I25 -> 0 | L24: t CO2e/t HRC steel
A25: Electricity | D25: =F25*'Assumptions - Low-C Elec'!C27 -> 84.0000672 | E25: $/t HRC steel | F25: ='Your Tech - Today''s Grid'!F25 -> 10.08 | G25: GJ/t HRC steel | H25: =F25*'Assumptions - Low-C Elec'!F27 -> 0.196 | I25: t CO2e/t HRC steel | K25: =F25*'Assumptions - Low-C Elec'!I27 -> 0 | L25: t CO2e/t HRC steel
A26: Fossil SMR Hydrogen (US) | D26: =F26*'Assumptions - Low-C Elec'!C28 -> 0 | E26: $/t HRC steel | F26: ='Your Tech - Today''s Grid'!F26 -> 0 | G26: GJ/t HRC steel | H26: =F26*'Assumptions - Low-C Elec'!F28 -> 0 | I26: t CO2e/t HRC steel | K26: =F26*'Assumptions - Low-C Elec'!I28 -> 0 | L26: t CO2e/t HRC steel
A27: Fossil SMR+CCS Hydrogen (US) | D27: =F27*'Assumptions - Low-C Elec'!C29 -> 0 | E27: $/t HRC steel | F27: ='Your Tech - Today''s Grid'!F27 -> 0 | G27: GJ/t HRC steel | H27: =F27*'Assumptions - Low-C Elec'!F29 -> 0 | I27: t CO2e/t HRC steel | K27: =F27*'Assumptions - Low-C Elec'!I29 -> 0 | L27: t CO2e/t HRC steel
A28: Electrolysis Hydrogen (US) | D28: =F28*'Assumptions - Low-C Elec'!C30 -> 0 | E28: $/t HRC steel | F28: ='Your Tech - Today''s Grid'!F28 -> 0 | G28: GJ/t HRC steel | H28: =F28*'Assumptions - Low-C Elec'!F30 -> 0 | I28: t CO2e/t HRC steel | K28: =F28*'Assumptions - Low-C Elec'!I30 -> 0 | L28: t CO2e/t HRC steel
A29: Fossil Diesel | D29: =F29*'Assumptions - Low-C Elec'!C31 -> 0 | E29: $/t HRC steel | F29: ='Your Tech - Today''s Grid'!F29 -> 0 | G29: GJ/t HRC steel | H29: =F29*'Assumptions - Low-C Elec'!F31 -> 0 | I29: t CO2e/t HRC steel | K29: =F29*'Assumptions - Low-C Elec'!I31 -> 0 | L29: t CO2e/t HRC steel
A30: Fossil Gasoline | D30: =F30*'Assumptions - Low-C Elec'!C32 -> 0 | E30: $/t HRC steel | F30: ='Your Tech - Today''s Grid'!F30 -> 0 | G30: GJ/t HRC steel | H30: =F30*'Assumptions - Low-C Elec'!F32 -> 0 | I30: t CO2e/t HRC steel | K30: =F30*'Assumptions - Low-C Elec'!I32 -> 0 | L30: t CO2e/t HRC steel
A31: Alternate Inputs (user-added) start here | D31: =F31*'Assumptions - Low-C Elec'!C33 -> 0 | E31: $/t HRC steel | F31: ='Your Tech - Today''s Grid'!F31 -> 0 | G31: GJ/t HRC steel | H31: =F31*'Assumptions - Low-C Elec'!F34 -> 0 | I31: t CO2e/t HRC steel | K31: =F31*'Assumptions - Low-C Elec'!I34 -> 0 | L31: t CO2e/t HRC steel
A34: Feedstocks to Ironmaking Step ONLY (New Tech)
A35: Iron ore fines (imported) | D35: =F35*'Assumptions - Low-C Elec'!C14 -> 0 | E35: $/t HRC steel | F35: ='Your Tech - Today''s Grid'!F35 -> 0 | G35: t Fe/t HRC steel | H35: =SUM(H107:H114)*F35 -> 0 | I35: t CO2e/t HRC steel | K35: ='Assumptions - Low-C Elec'!I14*F35 -> 0 | L35: t CO2e/t HRC steel
A36: Iron ore fines (US - Taconite) | D36: =F36*'Assumptions - Low-C Elec'!C15 -> 342 | E36: $/t HRC steel | F36: ='Your Tech - Today''s Grid'!F36 -> 3 | G36: t Fe/t HRC steel | H36: =SUM(H117:H124)*F36 -> 0.06226658294 | I36: t CO2e/t HRC steel | K36: ='Assumptions - Low-C Elec'!I15*F36 -> 0 | L36: t CO2e/t HRC steel
A37: Biomass | D37: =F37*'Assumptions - Low-C Elec'!C16 -> 0 | E37: $/t HRC steel | F37: ='Your Tech - Today''s Grid'!F37 -> 0 | G37: t biomass/t HRC steel | H37: ='Assumptions - Low-C Elec'!F17*F37 -> 0 | I37: t CO2e/t HRC steel | K37: ='Assumptions - Low-C Elec'!I17*F37 -> 0 | L37: t CO2e/t HRC steel
A38: Biocharcoal | D38: =F38*'Assumptions - Low-C Elec'!C17 -> 0 | E38: $/t HRC steel | F38: ='Your Tech - Today''s Grid'!F38 -> 0 | G38: t biocharcoal/t HRC steel | H38: ='Assumptions - Low-C Elec'!F18*F38 -> 0 | I38: t CO2e/t HRC steel | K38: ='Assumptions - Low-C Elec'!I18*F38 -> 0 | L38: t CO2e/t HRC steel
A39: Electrolysis Hydrogen | D39: =F39*'Assumptions - Low-C Elec'!C18 -> 0 | E39: $/t HRC steel | F39: ='Your Tech - Today''s Grid'!F39 -> 0 | G39: t H2/t HRC steel | H39: ='Assumptions - Low-C Elec'!F19*F39 -> 0 | I39: t CO2e/t HRC steel | K39: ='Assumptions - Low-C Elec'!I19*F39 -> 0 | L39: t CO2e/t HRC steel
A40: Lime | D40: =F40*'Assumptions - Low-C Elec'!C19 -> 0.15 | E40: $/t HRC steel | F40: ='Your Tech - Today''s Grid'!F40 -> 0.075 | G40: t lime/t HRC steel | H40: ='Assumptions - Low-C Elec'!F20*F40 -> 0.000825 | I40: t CO2e/t HRC steel | K40: ='Assumptions - Low-C Elec'!I20*F40 -> 0 | L40: t CO2e/t HRC steel
A41: Alternate Inputs (user-added) start here | D41: =F41*'Assumptions - Low-C Elec'!C20 -> 0 | E41: $/t HRC steel | F41: ='Your Tech - Today''s Grid'!F41 -> 0 | G41: t/t HRC steel | H41: ='Assumptions - Low-C Elec'!F21*F41 -> 0 | I41: t CO2e/t HRC steel | K41: ='Assumptions - Low-C Elec'!I21*F41 -> 0 | L41: t CO2e/t HRC steel
A43: Energy Inputs to Steelmaking Step ONLY (EAF)
A44: Natural Gas | D44: =F44*'Assumptions - Low-C Elec'!C24 -> 1.281586895 | E44: $/t HRC steel | F44: =F96 -> 0.4948211949 | G44: GJ/t HRC | H44: =F44*('Assumptions - Low-C Elec'!F24) -> 0.005443033144 | I44: t CO2e/t HRC | K44: =F44*('Assumptions - Low-C Elec'!I24) -> 0.03315302006 | L44: t CO2e/t HRC steel
A45: Coke | D45: =F45*'Assumptions - Low-C Elec'!C25 -> 0.4286691929 | E45: $/t HRC steel | F45: =F102 -> 0.1793594949 | G45: GJ/t HRC | H45: =F45*('Assumptions - Low-C Elec'!F25) -> 0.00107615697 | I45: t CO2e/t HRC | K45: =F45*('Assumptions - Low-C Elec'!I25) -> 0.01972954444 | L45: t CO2e/t HRC steel
A46: Electricity | D46: =F46*'Assumptions - Low-C Elec'!C27 -> 13.45197288 | E46: $/t HRC steel | F46: =F97 -> 1.614235455 | G46: GJ/t HRC | H46: =F46*('Assumptions - Low-C Elec'!F27) -> 0.03138791162 | I46: t CO2e/t HRC | K46: =F46*('Assumptions - Low-C Elec'!I27) -> 0 | L46: t CO2e/t HRC steel
A47: Fossil SMR Hydrogen | D47: =F47*'Assumptions - Low-C Elec'!C28 -> 0 | E47: $/t HRC steel | F47: 0 | G47: GJ/t HRC | H47: =F47*('Assumptions - Low-C Elec'!F28) -> 0 | I47: t CO2e/t HRC | K47: =F47*('Assumptions - Low-C Elec'!I28) -> 0 | L47: t CO2e/t HRC steel
A48: Fossil SMR+CCS Hydrogen | D48: =F48*'Assumptions - Low-C Elec'!C29 -> 0 | E48: $/t HRC steel | F48: 0 | G48: GJ/t HRC | H48: =F48*('Assumptions - Low-C Elec'!F29) -> 0 | I48: t CO2e/t HRC | K48: =F48*('Assumptions - Low-C Elec'!I29) -> 0 | L48: t CO2e/t HRC steel
A49: Electrolysis Hydrogen (US) | D49: =F49*'Assumptions - Low-C Elec'!C30 -> 0 | E49: $/t HRC steel | F49: 0 | G49: GJ/t HRC | H49: =F49*('Assumptions - Low-C Elec'!F30) -> 0 | I49: t CO2e/t HRC | K49: =F49*('Assumptions - Low-C Elec'!I30) -> 0 | L49: t CO2e/t HRC steel
A51: Additional Feedstocks to Steelmaking Step ONLY (EAF)
A52: Iron ore fines (imported) | D52: =F52*'Assumptions - Low-C Elec'!C14 -> 0 | E52: $/t HRC steel | F52: 0 | G52: t Fe/t HRC steel | H52: ='Assumptions - Low-C Elec'!F13*F52 -> 0 | I52: t CO2e/t HRC steel | K52: ='Assumptions - Low-C Elec'!I13*F52 -> 0 | L52: t CO2e/t HRC steel
A53: Iron ore fines (US - Taconite) | D53: =F53*'Assumptions - Low-C Elec'!C15 -> 0 | E53: $/t HRC steel | F53: 0 | G53: t Fe/t HRC steel | H53: ='Assumptions - Low-C Elec'!F14*F53 -> 0 | I53: t CO2e/t HRC steel | K53: ='Assumptions - Low-C Elec'!I14*F53 -> 0 | L53: t CO2e/t HRC steel
A54: Scrap | D54: =F54*'Assumptions - Low-C Elec'!C16 -> 101.6 | E54: $/t HRC steel | F54: =F103 -> 0.254 | G54: t scrap/t HRC steel | H54: ='Assumptions - Low-C Elec'!F15*F54 -> 0.005271904022 | I54: t CO2e/t HRC steel | K54: ='Assumptions - Low-C Elec'!I15*F54 -> 0 | L54: t CO2e/t HRC steel
A55: Biomass | D55: =F55*'Assumptions - Low-C Elec'!C17 -> 0 | E55: $/t HRC steel | F55: 0 | G55: t biomass/t HRC steel | H55: ='Assumptions - Low-C Elec'!F16*F55 -> 0 | I55: t CO2e/t HRC steel | K55: ='Assumptions - Low-C Elec'!I16*F55 -> 0 | L55: t CO2e/t HRC steel
A56: Biocharcoal | D56: =F56*'Assumptions - Low-C Elec'!C18 -> 0 | E56: $/t HRC steel | F56: 0 | G56: t biocharcoal/t HRC steel | H56: ='Assumptions - Low-C Elec'!F17*F56 -> 0 | I56: t CO2e/t HRC steel | K56: ='Assumptions - Low-C Elec'!I17*F56 -> 0 | L56: t CO2e/t HRC steel
A57: Electrolysis Hydrogen | D57: =F57*'Assumptions - Low-C Elec'!C19 -> 0 | E57: $/t HRC steel | F57: 0 | G57: t H2/t HRC steel | H57: ='Assumptions - Low-C Elec'!F18*F57 -> 0 | I57: t CO2e/t HRC steel | K57: ='Assumptions - Low-C Elec'!I18*F57 -> 0 | L57: t CO2e/t HRC steel
A58: Lime | D58: =F58*'Assumptions - Low-C Elec'!C20 -> 0 | E58: $/t HRC steel | F58: 0 | G58: t lime/t HRC steel | H58: ='Assumptions - Low-C Elec'!F19*F58 -> 0 | I58: t CO2e/t HRC steel | K58: ='Assumptions - Low-C Elec'!I19*F58 -> 0 | L58: t CO2e/t HRC steel
A59: Alternate Inputs (user-added) start here | D59: =F59*'Assumptions - Low-C Elec'!C21 -> 0 | E59: $/t HRC steel | F59: 0 | G59: t/t HRC steel | H59: ='Assumptions - Low-C Elec'!F20*F59 -> 0 | I59: t CO2e/t HRC steel | K59: ='Assumptions - Low-C Elec'!I20*F59 -> 0 | L59: t CO2e/t HRC steel
A61: Life Cycle Stages | F61: Energy Input | G61: Unit
A62: Hot Rolling | D62: 5 | E62: $/t HRC
A63: Natural Gas | E63: =F63*'Assumptions - Today''s Grid'!C23 -> 1.721534635 | F63: =CONVERT(0.63*1000000,"BTU","GJ") -> 0.6646851872 | G63: GJ/t HRC | H63: =F63*('Assumptions - Low-C Elec'!$F$24+'Assumptions - Low-C Elec'!$I$24) -> 0.0518454446 | I63: t CO2e/t HRC | J63: Base value from GREET2 2022
A64: Electricity | E64: =F64*'Assumptions - Today''s Grid'!C26 -> 14.44255389 | F64: =CONVERT(1000000*0.704,"BTU","GJ") -> 0.7427593202 | G64: GJ/t HRC | H64: =F64*('Assumptions - Low-C Elec'!$F$27+'Assumptions - Low-C Elec'!$I$27) -> 0.01444254234 | I64: t CO2e/t HRC | J64: Base value from GREET2 2022
A65: Biomass | E65: =F65*'Assumptions - Today''s Grid'!C17 -> 0 | F65: 0 | G65: t/t HRC | H65: =F65*('Assumptions - Low-C Elec'!$F$17+'Assumptions - Low-C Elec'!$I$17) -> 0 | I65: t CO2e/t HRC | J65: Base value from GREET2 2022
A66: Fossil SMR Hydrogen | E66: =F66*'Assumptions - Today''s Grid'!C28 -> 0 | F66: 0 | G66: GJ/t HRC | H66: =F66*('Assumptions - Low-C Elec'!$F$28+'Assumptions - Low-C Elec'!$I$28) -> 0 | I66: t CO2e/t HRC
A67: Fossil SMR+CCS Hydrogen | E67: =F67*'Assumptions - Today''s Grid'!C29 -> 0 | F67: 0 | G67: GJ/t HRC | H67: =F67*('Assumptions - Low-C Elec'!$F$29+'Assumptions - Low-C Elec'!$I$29) -> 0 | I67: t CO2e/t HRC
A68: Electrolysis Hydrogen (US) | E68: =F68*'Assumptions - Today''s Grid'!C30 -> 0 | F68: 0 | G68: GJ/t HRC | H68: =F68*('Assumptions - Low-C Elec'!$F$30+'Assumptions - Low-C Elec'!$I$30) -> 0 | I68: t CO2e/t HRC
A70: Sintering | D70: 2 | E70: $/t HRC
A71: Natural Gas | E71: =F71*'Assumptions - Today''s Grid'!C23 -> 0 | F71: 0 | G71: GJ/t HRC | H71: =F71*('Assumptions - Low-C Elec'!$F$24+'Assumptions - Low-C Elec'!$I$24) -> 0 | I71: t CO2e/t HRC | J71: Base value from GREET2 2022
A72: Electricity | E72: =F72*'Assumptions - Today''s Grid'!C26 -> 3.138793673 | F72: =CONVERT(1000000*0.153,"BTU","GJ") -> 0.1614235455 | G72: GJ/t HRC | H72: =F72*('Assumptions - Low-C Elec'!$F$27+'Assumptions - Low-C Elec'!$I$27) -> 0.003138791162 | I72: t CO2e/t HRC | J72: Base value from GREET2 2022
A73: Biomass | E73: =F73*'Assumptions - Today''s Grid'!C17 -> 0 | F73: 0 | G73: GJ/t HRC | H73: =F73*('Assumptions - Low-C Elec'!$F$17+'Assumptions - Low-C Elec'!$I$17) -> 0 | I73: t CO2e/t HRC | J73: Base value from GREET2 2022
A74: Fossil SMR Hydrogen | E74: =F74*'Assumptions - Today''s Grid'!C28 -> 0 | F74: 0 | G74: GJ/t HRC | H74: =F74*('Assumptions - Low-C Elec'!$F$28+'Assumptions - Low-C Elec'!$I$28) -> 0 | I74: t CO2e/t HRC
A75: Fossil SMR+CCS Hydrogen | E75: =F75*'Assumptions - Today''s Grid'!C29 -> 0 | F75: 0 | G75: GJ/t HRC | H75: =F75*('Assumptions - Low-C Elec'!$F$29+'Assumptions - Low-C Elec'!$I$29) -> 0 | I75: t CO2e/t HRC
A76: Electrolysis Hydrogen (US) | E76: =F76*'Assumptions - Today''s Grid'!C30 -> 0 | F76: 0 | G76: GJ/t HRC | H76: =F76*('Assumptions - Low-C Elec'!$F$30+'Assumptions - Low-C Elec'!$I$30) -> 0 | I76: t CO2e/t HRC
A77: Coke | E77: =F77*'Assumptions - Today''s Grid'!C24 -> 2.781306587 | F77: =CONVERT(1.103*1000000,"BTU","GJ") -> 1.163726605 | G77: GJ/t HRC | H77: =F77*('Assumptions - Low-C Elec'!$F$25+'Assumptions - Low-C Elec'!$I$25) -> 0.1349922862 | I77: t CO2e/t HRC
A79: Stamping | D79: 2 | E79: $/t HRC
A80: Natural Gas | E80: =F80*'Assumptions - Today''s Grid'!C23 -> 0 | F80: 0 | G80: GJ/t HRC | H80: =F80*('Assumptions - Low-C Elec'!$F$24+'Assumptions - Low-C Elec'!$I$24) -> 0 | I80: t CO2e/t HRC | J80: Base value from GREET2 2022
A81: Electricity | E81: =F81*'Assumptions - Today''s Grid'!C26 -> 17.64289254 | F81: =CONVERT(1000000*0.86,"BTU","GJ") -> 0.9073480333 | G81: GJ/t HRC | H81: =F81*('Assumptions - Low-C Elec'!$F$27+'Assumptions - Low-C Elec'!$I$27) -> 0.01764287842 | I81: t CO2e/t HRC | J81: Base value from GREET2 2022
A82: Biomass | E82: =F82*'Assumptions - Today''s Grid'!C17 -> 0 | F82: 0 | G82: GJ/t HRC | H82: =F82*('Assumptions - Low-C Elec'!$F$17+'Assumptions - Low-C Elec'!$I$17) -> 0 | I82: t CO2e/t HRC | J82: Base value from GREET2 2022
A83: Fossil SMR Hydrogen | E83: =F83*'Assumptions - Today''s Grid'!C27 -> 0 | F83: 0 | G83: GJ/t HRC | H83: =F83*('Assumptions - Low-C Elec'!$F$28+'Assumptions - Low-C Elec'!$I$28) -> 0 | I83: t CO2e/t HRC
A84: Fossil SMR+CCS Hydrogen | E84: =F84*'Assumptions - Today''s Grid'!C28 -> 0 | F84: 0 | G84: GJ/t HRC | H84: =F84*('Assumptions - Low-C Elec'!$F$29+'Assumptions - Low-C Elec'!$I$29) -> 0 | I84: t CO2e/t HRC
A85: Electrolysis Hydrogen (US) | E85: =F85*'Assumptions - Today''s Grid'!C29 -> 0 | F85: 0 | G85: GJ/t HRC | H85: =F85*('Assumptions - Low-C Elec'!$F$30+'Assumptions - Low-C Elec'!$I$30) -> 0 | I85: t CO2e/t HRC
A87: Skin Mill | D87: 1 | E87: $/t HRC
A88: Natural Gas | E88: =F88*'Assumptions - Today''s Grid'!C23 -> 0 | F88: 0 | G88: GJ/t HRC | H88: =F88*('Assumptions - Low-C Elec'!$F$24+'Assumptions - Low-C Elec'!$I$24) -> 0 | I88: t CO2e/t HRC | J88: Base value from GREET2 2022
A89: Electricity | E89: =F89*'Assumptions - Today''s Grid'!C26 -> 0.8616296356 | F89: =CONVERT(1000000*0.042,"BTU","GJ") -> 0.04431234581 | G89: GJ/t HRC | H89: =F89*('Assumptions - Low-C Elec'!$F$27+'Assumptions - Low-C Elec'!$I$27) -> 0.0008616289463 | I89: t CO2e/t HRC | J89: Base value from GREET2 2022
A90: Biomass | E90: =F90*'Assumptions - Today''s Grid'!C17 -> 0 | F90: 0 | G90: GJ/t HRC | H90: =F90*('Assumptions - Low-C Elec'!$F$17+'Assumptions - Low-C Elec'!$I$17) -> 0 | I90: t CO2e/t HRC | J90: Base value from GREET2 2022
A91: Fossil SMR Hydrogen | E91: =F91*'Assumptions - Today''s Grid'!C27 -> 0 | F91: 0 | G91: GJ/t HRC | H91: =F91*('Assumptions - Low-C Elec'!$F$28+'Assumptions - Low-C Elec'!$I$28) -> 0 | I91: t CO2e/t HRC
A92: Fossil SMR+CCS Hydrogen | E92: =F92*'Assumptions - Today''s Grid'!C28 -> 0 | F92: 0 | G92: GJ/t HRC | H92: =F92*('Assumptions - Low-C Elec'!$F$29+'Assumptions - Low-C Elec'!$I$29) -> 0 | I92: t CO2e/t HRC
A93: Electrolysis Hydrogen (US) | E93: =F93*'Assumptions - Today''s Grid'!C29 -> 0 | F93: 0 | G93: GJ/t HRC | H93: =F93*'Assumptions - Low-C Elec'!$F$30+'Assumptions - Low-C Elec'!$I$30 -> 0 | I93: t CO2e/t HRC
A95: EAF | E95: $/t HRC
A96: Natural Gas | E96: =F96*'Assumptions - Today''s Grid'!C23 -> 1.281586895 | F96: 0.4948211949 | G96: GJ/t HRC | H96: =F96*('Assumptions - Low-C Elec'!$F$24+'Assumptions - Low-C Elec'!$I$24) -> 0.0385960532 | I96: t CO2e/t HRC | J96: Base value from GREET2 2022
A97: Electricity | E97: =F97*'Assumptions - Today''s Grid'!C26 -> 31.38793673 | F97: 1.614235455 | G97: GJ/t HRC | H97: =F97*('Assumptions - Low-C Elec'!$F$27+'Assumptions - Low-C Elec'!$I$27) -> 0.03138791162 | I97: t CO2e/t HRC | J97: Base value from GREET2 2022
A98: Biomass | E98: =F98*'Assumptions - Today''s Grid'!C17 -> 0 | F98: 0 | G98: GJ/t HRC | H98: =F98*('Assumptions - Low-C Elec'!$F$17+'Assumptions - Low-C Elec'!$I$17) -> 0 | I98: t CO2e/t HRC | J98: Base value from GREET2 2022
A99: Fossil SMR Hydrogen | E99: =F99*'Assumptions - Today''s Grid'!C27 -> 0 | F99: 0 | G99: GJ/t HRC | H99: =F99*('Assumptions - Low-C Elec'!$F$28+'Assumptions - Low-C Elec'!$I$28) -> 0 | I99: t CO2e/t HRC
A100: Fossil SMR+CCS Hydrogen | E100: =F100*'Assumptions - Today''s Grid'!C28 -> 0 | F100: 0 | G100: GJ/t HRC | H100: =F100*('Assumptions - Low-C Elec'!$F$29+'Assumptions - Low-C Elec'!$I$29) -> 0 | I100: t CO2e/t HRC
A101: Electrolysis Hydrogen (US) | E101: =F101*'Assumptions - Today''s Grid'!C29 -> 0 | F101: 0 | G101: GJ/t HRC | H101: =F101*('Assumptions - Low-C Elec'!$F$30+'Assumptions - Low-C Elec'!$I$30) -> 0 | I101: t CO2e/t HRC
A102: Coke | E102: =F102*'Assumptions - Today''s Grid'!C24 -> 0.4286691929 | F102: 0.1793594949 | G102: GJ/t HRC | H102: =F102*('Assumptions - Low-C Elec'!$F$25+'Assumptions - Low-C Elec'!$I$25) -> 0.02080570141 | I102: t CO2e/t HRC
A103: Scrap | E103: =F103*'Assumptions - Today''s Grid'!C16 -> 101.6 | F103: 0.254 | G103: t/t HRC | H103: =F103*('Assumptions - Today''s Grid'!$F$16+'Assumptions - Today''s Grid'!$I$16) -> 0.0508 | I103: t CO2e/t HRC
A104: Iron Ore | E104: =F104*'Assumptions - Today''s Grid'!C14 -> 0 | F104: 0 | G104: t/t HRC | H104: =F104*'Assumptions - Today''s Grid'!$F$15 -> 0 | I104: t CO2e/t HRC
A106: Extraction + Beneficiation (Imported high quality) | E106: $/t HRC
A107: Natural Gas | E107: =F107*'Assumptions - Today''s Grid'!C23 -> 0.03525928591 | F107: =CONVERT(0.008*1000000,"BTU","GJ")/'Assumptions - Low-C Elec'!$B$14 -> 0.0136136239 | G107: GJ/t Fe (adjusted for Fe content in ore) | H107: =F107*('Assumptions - Low-C Elec'!$F$24+'Assumptions - Low-C Elec'!$I$24) -> 0.001061862665 | I107: t CO2e/t Fe (adjusted for Fe content in ore)
A108: Electricity | E108: =F108*'Assumptions - Today''s Grid'!C26 -> 2.614006959 | F108: =CONVERT(0.079*1000000,"BTU","GJ")/'Assumptions - Low-C Elec'!$B$14 -> 0.1344345361 | G108: GJ/t Fe (adjusted for Fe content in ore) | H108: =F108*('Assumptions - Low-C Elec'!$F$27+'Assumptions - Low-C Elec'!$I$27) -> 0.002614004868 | I108: t CO2e/t Fe (adjusted for Fe content in ore)
A109: Biomass | E109: =F109*'Assumptions - Today''s Grid'!C17 -> 0 | F109: 0 | G109: GJ/t Fe (adjusted for Fe content in ore) | H109: =F109*('Assumptions - Low-C Elec'!$F$17+'Assumptions - Low-C Elec'!$I$17) -> 0 | I109: t CO2e/t Fe (adjusted for Fe content in ore)
A110: Fossil SMR Hydrogen | E110: =F110*'Assumptions - Today''s Grid'!C27 -> 0 | F110: 0 | G110: GJ/t Fe (adjusted for Fe content in ore) | H110: =F110*('Assumptions - Low-C Elec'!$F$28+'Assumptions - Low-C Elec'!$I$28) -> 0 | I110: t CO2e/t Fe (adjusted for Fe content in ore)
A111: Fossil SMR+CCS Hydrogen | E111: =F111*'Assumptions - Today''s Grid'!C28 -> 0 | F111: 0 | G111: GJ/t Fe (adjusted for Fe content in ore) | H111: =F111*('Assumptions - Low-C Elec'!$F$29+'Assumptions - Low-C Elec'!$I$29) -> 0 | I111: t CO2e/t Fe (adjusted for Fe content in ore)
A112: Electrolysis Hydrogen (US) | E112: =F112*'Assumptions - Today''s Grid'!C29 -> 0 | F112: 0 | G112: GJ/t Fe (adjusted for Fe content in ore) | H112: =F112*('Assumptions - Low-C Elec'!$F$30+'Assumptions - Low-C Elec'!$I$30) -> 0 | I112: t CO2e/t Fe (adjusted for Fe content in ore)
A113: Fossil Diesel | E113: =F113*'Assumptions - Today''s Grid'!C30 -> 1.580645161 | F113: =CONVERT(0.028*1000000,"BTU","GJ")/'Assumptions - Low-C Elec'!$B$14 -> 0.04764768367 | G113: GJ/t Fe (adjusted for Fe content in ore) | H113: =F113*('Assumptions - Low-C Elec'!$F$31+'Assumptions - Low-C Elec'!$I$31) -> 0.004383586897 | I113: t CO2e/t Fe (adjusted for Fe content in ore)
A114: Fossil Gasoline | E114: =F114*'Assumptions - Today''s Grid'!C31 -> 0.09677419355 | F114: =CONVERT(0.002*1000000,"BTU","GJ")/'Assumptions - Low-C Elec'!$B$14 -> 0.003403405976 | G114: GJ/t Fe (adjusted for Fe content in ore) | H114: =F114*('Assumptions - Low-C Elec'!$F$32+'Assumptions - Low-C Elec'!$I$32) -> 0.0003097099438 | I114: t CO2e/t Fe (adjusted for Fe content in ore)
A116: Extraction + Beneficiation (US Taconite) | E116: $/t HRC
A117: Natural Gas | E117: =F117*'Assumptions - Today''s Grid'!C23 -> 0.08744302907 | F117: =CONVERT(0.008*1000000,"BTU","GJ")/'Assumptions - Low-C Elec'!$B$15 -> 0.03376178728 | G117: GJ/t Fe (adjusted for Fe content in ore) | H117: =F117*('Assumptions - Low-C Elec'!$F$24+'Assumptions - Low-C Elec'!$I$24) -> 0.002633419408 | I117: t CO2e/t Fe (adjusted for Fe content in ore)
A118: Electricity | E118: =F118*'Assumptions - Today''s Grid'!C26 -> 6.482737258 | F118: =CONVERT(0.079*1000000,"BTU","GJ")/'Assumptions - Low-C Elec'!$B$15 -> 0.3333976494 | G118: GJ/t Fe (adjusted for Fe content in ore) | H118: =F118*('Assumptions - Low-C Elec'!$F$27+'Assumptions - Low-C Elec'!$I$27) -> 0.006482732072 | I118: t CO2e/t Fe (adjusted for Fe content in ore)
A119: Biomass | E119: =F119*'Assumptions - Today''s Grid'!C17 -> 0 | F119: 0 | G119: GJ/t Fe (adjusted for Fe content in ore) | H119: =F119*('Assumptions - Low-C Elec'!$F$17+'Assumptions - Low-C Elec'!$I$17) -> 0 | I119: t CO2e/t Fe (adjusted for Fe content in ore)
A120: Fossil SMR Hydrogen | E120: =F120*'Assumptions - Today''s Grid'!C27 -> 0 | F120: 0 | G120: GJ/t Fe (adjusted for Fe content in ore) | H120: =F120*('Assumptions - Low-C Elec'!$F$28+'Assumptions - Low-C Elec'!$I$28) -> 0 | I120: t CO2e/t Fe (adjusted for Fe content in ore)
A121: Fossil SMR+CCS Hydrogen | E121: =F121*'Assumptions - Today''s Grid'!C28 -> 0 | F121: 0 | G121: GJ/t Fe (adjusted for Fe content in ore) | H121: =F121*('Assumptions - Low-C Elec'!$F$29+'Assumptions - Low-C Elec'!$I$29) -> 0 | I121: t CO2e/t Fe (adjusted for Fe content in ore)
A122: Electrolysis Hydrogen (US) | E122: =F122*'Assumptions - Today''s Grid'!C29 -> 0 | F122: 0 | G122: GJ/t Fe (adjusted for Fe content in ore) | H122: =F122*('Assumptions - Low-C Elec'!$F$30+'Assumptions - Low-C Elec'!$I$30) -> 0 | I122: t CO2e/t Fe (adjusted for Fe content in ore)
A123: Fossil Diesel | E123: =F123*'Assumptions - Today''s Grid'!C30 -> 3.92 | F123: =CONVERT(0.028*1000000,"BTU","GJ")/'Assumptions - Low-C Elec'!$B$15 -> 0.1181662555 | G123: GJ/t Fe (adjusted for Fe content in ore) | H123: =F123*('Assumptions - Low-C Elec'!$F$31+'Assumptions - Low-C Elec'!$I$31) -> 0.01087129551 | I123: t CO2e/t Fe (adjusted for Fe content in ore)
A124: Fossil Gasoline | E124: =F124*'Assumptions - Today''s Grid'!C31 -> 0.24 | F124: =CONVERT(0.002*1000000,"BTU","GJ")/'Assumptions - Low-C Elec'!$B$15 -> 0.008440446821 | G124: GJ/t Fe (adjusted for Fe content in ore) | H124: =F124*('Assumptions - Low-C Elec'!$F$32+'Assumptions - Low-C Elec'!$I$32) -> 0.0007680806607 | I124: t CO2e/t Fe (adjusted for Fe content in ore)

Sheet Comparison
A29: Levelized Cost of Hot-Rolled Coil Comparison
C30: CAPEX | D30: Fixed OPEX | E30: Electricity | F30: Fuel | G30: Feedstocks | H30: Transportation | I30: Carbon Capture | J30: Target
B31: BF-BOF: Today's Grid | C31: ='BF-BOF - Today''s Grid'!D6 -> 59.16554466 | D31: =SUM('BF-BOF - Today''s Grid'!D9:D13) -> 101.588711 | E31: ='BF-BOF - Today''s Grid'!D24 -> 4.718448005 | F31: =SUM('BF-BOF - Today''s Grid'!D22:D29)-'BF-BOF - Today''s Grid'!D24 -> 29.04194217 | G31: =SUM('BF-BOF - Today''s Grid'!D42:D48) -> 491.5 | H31: =SUM('BF-BOF - Today''s Grid'!D17:D19) -> 96
B32: Your Tech: Today's Grid | C32: ='Your Tech - Today''s Grid'!D6+'Assumptions - Today''s Grid'!C46 -> 79.8734853 | D32: ='Your Tech - Today''s Grid'!D9+SUM('Your Tech - Today''s Grid'!D10:D13) -> 93.08871096 | E32: ='Your Tech - Today''s Grid'!D25+'Your Tech - Today''s Grid'!D46 -> 227.3880935 | F32: =SUM('Your Tech - Today''s Grid'!D23:D31)-'Your Tech - Today''s Grid'!D25+SUM('Your Tech - Today''s Grid'!D44:D49)-'Your Tech - Today''s Grid'!D46 -> 1.710256088 | G32: =SUM('Your Tech - Today''s Grid'!D35:D41)+SUM('Your Tech - Today''s Grid'!D52:D59) -> 454.1 | H32: =SUM('Your Tech - Today''s Grid'!D17:D19) -> 81
B33: BF-BOF: Low-C Grid | C33: ='BF-BOF - Low-C Elec'!D6 -> 59.16554466 | D33: =SUM('BF-BOF - Low-C Elec'!D9:D13) -> 101.588711 | E33: ='BF-BOF - Low-C Elec'!D24+'BF-BOF - Low-C Elec'!D34 -> 2.989327307 | F33: =SUM('BF-BOF - Low-C Elec'!D22:D39)-'BF-BOF - Low-C Elec'!D24-'BF-BOF - Low-C Elec'!D34 -> 29.95462879 | G33: =SUM('BF-BOF - Low-C Elec'!D42:D57) -> 491.5 | H33: =SUM('BF-BOF - Low-C Elec'!D17:D19) -> 96
B34: Your Tech: Low-C Grid | C34: ='Your Tech - Low-C Elec'!D6+'Assumptions - Today''s Grid'!C46 -> 79.8734853 | D34: =SUM('Your Tech - Low-C Elec'!D9:D13) -> 52.5 | E34: ='Your Tech - Low-C Elec'!D25+'Your Tech - Low-C Elec'!D46 -> 97.45204008 | F34: =SUM('Your Tech - Low-C Elec'!D23:D31)-'Your Tech - Low-C Elec'!D25+SUM('Your Tech - Low-C Elec'!D44:D49)-'Your Tech - Low-C Elec'!D46 -> 1.710256088 | G34: =SUM('Your Tech - Low-C Elec'!D35:D41)+SUM('Your Tech - Low-C Elec'!D52:D59) -> 443.75 | H34: =SUM('Your Tech - Low-C Elec'!D17:D19) -> 81
B35: Target | J35: 400
A37: GHG Emissions Comparison
C38: Capital Equip | D38: Operations | E38: Electricity | F38: Fuel | G38: Feedstocks | H38: Transportation | I38: Other | J38: Target
B39: BF-BOF: Today's Grid | C39: ='BF-BOF - Today''s Grid'!H6+'BF-BOF - Today''s Grid'!K6 -> 0 | D39: =SUM('BF-BOF - Today''s Grid'!K10:K13) -> 0.3863408796 | E39: ='BF-BOF - Today''s Grid'!H24+'BF-BOF - Today''s Grid'!H34 -> 0.03856229141 | F39: =SUM('BF-BOF - Today''s Grid'!H22:H29)+SUM('BF-BOF - Today''s Grid'!K22:K29)+SUM('BF-BOF - Today''s Grid'!H32:H39)+SUM('BF-BOF - Today''s Grid'!K32:K39)-'BF-BOF - Today''s Grid'!H24-'BF-BOF - Today''s Grid'!H34 -> 1.363465559 | G39: =SUM('BF-BOF - Today''s Grid'!H42:H57)+SUM('BF-BOF - Today''s Grid'!K42:K57) -> 0.2137771716 | H39: =SUM('BF-BOF - Today''s Grid'!H17:H19)+SUM('BF-BOF - Today''s Grid'!K17:K19) -> 0.13216
B40: Your Tech: Today's Grid | C40: ='Your Tech - Today''s Grid'!H6+'Your Tech - Today''s Grid'!K6 -> 0 | D40: =SUM('Your Tech - Today''s Grid'!K10:K13) -> 0.3863408796 | E40: ='Your Tech - Today''s Grid'!H25+'Your Tech - Today''s Grid'!K25+'Your Tech - Today''s Grid'!H46+'Your Tech - Today''s Grid'!K46 -> 1.257130311 | F40: =SUM('Your Tech - Today''s Grid'!H23:H31)-'Your Tech - Today''s Grid'!H25+SUM('Your Tech - Today''s Grid'!K23:K31)-'Your Tech - Today''s Grid'!K25+SUM('Your Tech - Today''s Grid'!H44:H49)-'Your Tech - Today''s Grid'!H46+SUM('Your Tech - Today''s Grid'!K44:K49)-'Your Tech - Today''s Grid'!K46 -> 0.05940175461 | G40: =SUM('Your Tech - Today''s Grid'!H52:H59)+SUM('Your Tech - Today''s Grid'!K52:K59)+SUM('Your Tech - Today''s Grid'!H35:H41)+SUM('Your Tech - Today''s Grid'!K35:K41) -> 0.2019641287 | H40: =SUM('Your Tech - Today''s Grid'!H17:H19)+SUM('Your Tech - Today''s Grid'!K17:K19) -> 0.12108
B41: BF-BOF: Low-C Elec Mix | C41: 0 | D41: =SUM('BF-BOF - Low-C Elec'!K10:K13) -> 0.2229235717 | E41: ='BF-BOF - Low-C Elec'!H24+'BF-BOF - Low-C Elec'!K24+'BF-BOF - Low-C Elec'!H34+'BF-BOF - Low-C Elec'!K34 -> 0.00697509147 | F41: =SUM('BF-BOF - Low-C Elec'!H22:H39)+SUM('BF-BOF - Low-C Elec'!K22:K39)-'BF-BOF - Low-C Elec'!H24-'BF-BOF - Low-C Elec'!K24-'BF-BOF - Low-C Elec'!H34-'BF-BOF - Low-C Elec'!K34 -> 1.363465559 | G41: =SUM('BF-BOF - Low-C Elec'!H42:H57)+SUM('BF-BOF - Low-C Elec'!K42:K57) -> 0.09634711059 | H41: =SUM('BF-BOF - Low-C Elec'!H17:H19)+SUM('BF-BOF - Low-C Elec'!K17:K19) -> 0.13216
B42: Your Tech: Low-C Elec Mix | C42: 0 | D42: =SUM('Your Tech - Low-C Elec'!K10:K13) -> 0.2229235717 | E42: ='Your Tech - Low-C Elec'!H25+'Your Tech - Low-C Elec'!K25+'Your Tech - Low-C Elec'!H46+'Your Tech - Low-C Elec'!K46 -> 0.2273879116 | F42: =SUM('Your Tech - Low-C Elec'!H23:H31)+SUM('Your Tech - Low-C Elec'!K23:K31)-'Your Tech - Low-C Elec'!H25-'Your Tech - Low-C Elec'!K25+SUM('Your Tech - Low-C Elec'!H44:H49)+SUM('Your Tech - Low-C Elec'!K44:K49)-'Your Tech - Low-C Elec'!H46-'Your Tech - Low-C Elec'!K46 -> 0.05940175461 | G42: =SUM('Your Tech - Low-C Elec'!H35:H41)+SUM('Your Tech - Low-C Elec'!K35:K41)+SUM('Your Tech - Low-C Elec'!H52:H59)+SUM('Your Tech - Low-C Elec'!K52:K59) -> 0.06836348696 | H42: =SUM('Your Tech - Low-C Elec'!H17:H19)+SUM('Your Tech - Low-C Elec'!K17:K19) -> 0.12108
B43: Target | J43: 0.7
A46: GHG Emissions Comparison | C46: Extraction + Beneficiation + Agglomeration | D46: Iron Ore Transport | E46: Ironmaking | F46: Steelmaking & Finishing | G46: Target
B47: BF-BOF: Today's Grid | C47: =SUM('BF-BOF - Today''s Grid'!H42:H43)+SUM('BF-BOF - Today''s Grid'!K42:K43)+'BF-BOF - Today''s Grid'!K10 -> 0.3527974889 | D47: =H39 -> 0.13216 | E47: =SUM('BF-BOF - Today''s Grid'!H22:H29)+SUM('BF-BOF - Today''s Grid'!K22:K29)+SUM('BF-BOF - Today''s Grid'!H44:H48)+SUM('BF-BOF - Today''s Grid'!K44:K48) -> 1.3753905 | F47: =SUM('BF-BOF - Today''s Grid'!H32:H39)+SUM('BF-BOF - Today''s Grid'!K32:K39)+SUM('BF-BOF - Today''s Grid'!K11:K13) -> 0.2739579128 | H47: =SUM(C47:F47) -> 2.134305902 | I47: =H47-K39 -> 2.134305902
B48: Your Tech: Today's Grid | C48: =SUM('Your Tech - Today''s Grid'!H35:H36)+SUM('Your Tech - Today''s Grid'!K35:K36)+'Your Tech - Today''s Grid'!K10 -> 0.302684446 | D48: =SUM('Your Tech - Today''s Grid'!H17:H19)+SUM('Your Tech - Today''s Grid'!K17:K19) -> 0.12108 | E48: =SUM('Your Tech - Today''s Grid'!H23:H31)+SUM('Your Tech - Today''s Grid'!K23:K31)+SUM('Your Tech - Today''s Grid'!H37:H41)+SUM('Your Tech - Today''s Grid'!K37:K41) -> 1.084425 | F48: =SUM('Your Tech - Today''s Grid'!H44:H59)+SUM('Your Tech - Today''s Grid'!K44:K59)+SUM('Your Tech - Today''s Grid'!K11:K13) -> 0.5177276282 | H48: =SUM(C48:F48) -> 2.025917074 | I48: =H48-K40 -> 2.025917074
B49: BF-BOF: Low-C Elec Mix | C49: =SUM('BF-BOF - Low-C Elec'!H42:H43)+SUM('BF-BOF - Low-C Elec'!K42:K43)+'BF-BOF - Low-C Elec'!K10 -> 0.221153188 | D49: =SUM('BF-BOF - Low-C Elec'!H17:H19)+SUM('BF-BOF - Low-C Elec'!K17:K19) -> 0.13216 | E49: =SUM('BF-BOF - Low-C Elec'!H22:H29)+SUM('BF-BOF - Low-C Elec'!K22:K29)+SUM('BF-BOF - Low-C Elec'!H44:H48)+SUM('BF-BOF - Low-C Elec'!K44:K48) -> 1.354022688 | F49: =SUM('BF-BOF - Low-C Elec'!H32:H39)+SUM('BF-BOF - Low-C Elec'!K32:K39)+SUM('BF-BOF - Low-C Elec'!K11:K13) -> 0.1145354566 | H49: =SUM(C49:F49) -> 1.821871333 | I49: 1.821871333
B50: Your Tech, Low-C Elec Mix | C50: =SUM('Your Tech - Low-C Elec'!H35:H36)+SUM('Your Tech - Low-C Elec'!K35:K36)+'Your Tech - Low-C Elec'!K10 -> 0.2003976603 | D50: =SUM('Your Tech - Low-C Elec'!H17:H19)+SUM('Your Tech - Low-C Elec'!K17:K19) -> 0.12108 | E50: =SUM('Your Tech - Low-C Elec'!H23:H31)+SUM('Your Tech - Low-C Elec'!K23:K31)+SUM('Your Tech - Low-C Elec'!H37:H41)+SUM('Your Tech - Low-C Elec'!K37:K41) -> 0.196825 | F50: =SUM('Your Tech - Low-C Elec'!K11:K13)+SUM('Your Tech - Low-C Elec'!H44:H59)+SUM('Your Tech - Low-C Elec'!K44:K59) -> 0.1808540646 | H50: 0.6991567249 | I50: 0.6991567249
B51: Target | G51: 0.7
